Cogmind - Beta 12 @@@ ROGUE MODE // 2024.02.27 @ 23:33:11 Player: lyrabold Result: Assimilated 0b10! Performance ------------- Evolutions (9) 4500 Regions Visited (42) 8400 Robots Destroyed (447) 2235 Value Destroyed (12039) 12039 Prototype IDs (308) 6160 Alien Tech Used (6) 1200 Bonus (39112) 39112 TOTAL SCORE: 73646 Bonus ------- Triggered Max Security 3000 High Alert Combat Kills 710 Follower Combat Kills 1237 Entered Garrisons 200 Aligned with FarCom 300 Met Data Miner 300 Met Imprinter 300 Met Warlord at Base 500 MAIN.C Attacked Warlord 500 Used Core Reset Matrix 3000 Met Warlord at Research 2000 Scanned by Researcher 500 Destroyed MAIN.C Guards 500 Met MAIN.C 5000 Destroyed MAIN.C Shell 5000 Destroyed MAIN.C 10000 Used 0b10 Conduit 2000 Met Warlord at Command 2000 Win 3000 Friendly Fire -935 Cogmind --------- Core Integrity 1206/1600 Matter 300/300 Energy 76/290 System Corruption 5% Temperature Warm (159) Movement Flying (7) Location 0b10 Command Parts ------- > --- POWER (2) -------- Micro Antimatter Reactor Zero-point Reactor > --- PROPULSION (7) --- Electron Diverter Electron Diverter Electron Diverter Cooled Impulse Thruster Cooled Impulse Thruster Cooled Impulse Thruster Improved Q-thruster > --- UTILITY (14) ----- Advanced Heat Sink Advanced Quantum Shading Machine Advanced Melee Analysis Suite Experimental Melee Analysis Suite Experimental Melee Analysis Suite Improved Armor Integrity Analyzer Femtoactuators Experimental Actuator Array Advanced Force Booster Experimental Reaction Control System Experimental Phase Shifter Experimental Utility Shielding Centrium Medium Armor Plating Medium Regenerative Plating > --- WEAPON (3) ------- Vortex Lance Vortex Lance > --- INVENTORY (5) ---- Light Quantum Reactor Cooled Impulse Thruster Graphene Brace Nova Cannon Peak State ------------ > --- POWER ------------ Micro Antimatter Reactor Zero-point Reactor > --- PROPULSION ------- Electron Diverter Electron Diverter Electron Diverter Cooled Impulse Thruster Cooled Impulse Thruster Cooled Impulse Thruster Improved Q-thruster > --- UTILITY ---------- Advanced Heat Sink Advanced Quantum Shading Machine Spectral Analyzer Advanced Melee Analysis Suite Experimental Melee Analysis Suite Experimental Melee Analysis Suite Improved Armor Integrity Analyzer Femtoactuators Experimental Actuator Array Advanced Force Booster Experimental Reaction Control System Experimental Phase Shifter Experimental Utility Shielding Centrium Medium Armor Plating > --- WEAPON ----------- Vortex Lance Vortex Lance Vortex Lance > --- INVENTORY -------- Light Quantum Reactor Cooled Impulse Thruster Advanced Energy Well Graphene Brace Nova Cannon [Rating: 229] Favorites ----------- Power Heavy Ion Engine Engine Heavy Ion Engine Power Core Light Nuclear Core Reactor Graviton Reactor Propulsion Cooled VTOL Module Treads Light Treads Wheel Wheel Hover Unit Cooled Aerolev Unit Flight Unit Cooled VTOL Module Utility Advanced Hacking Suite Device Advanced Gravity Neutralizer Storage Medium Storage Unit Processor Spectral Analyzer Hackware Advanced Hacking Suite Protection Experimental Utility Shielding Artifact Microwarp Drive Weapon Impact Mace Energy Gun Small Laser Energy Cannon Nova Cannon Ballistic Gun Enhanced Autogun Ballistic Cannon Light Cannon Launcher Tiamat Missile Launcher Special Weapon Remote Datajack Impact Weapon Impact Mace Slashing Weapon Vibroblade Piercing Weapon Vortex Lance Special Melee Weapon Advanced Datajack Build | -11 -10 -10 -10 -9 -8 -8 -8 -7 -7 -7 -7 -7 -7 -6 -6 -6 -6 -6 -6 -6 -5 -5 -5 -5 -5 -5 -5 -4 -4 -4 -4 -4 -4 -4 -3 -3 -3 -2 -2 -2 -1 -1 ------- Run | Jun Mat Min Exi Min Mat Gar Mat Fac Was Fac Low Low Dat Pro Fac Was Fac Low Low Zio Pro Fac Was Fac Upp Upp War Pro Fac Was Fac Upp Upp Zhi Pro Res Qua Res Tes Sec Acc Com Slots Evolved 18 | . . . . . 4 . . 2 . . . . . . 2 . . . . . . 2 . . . . . . 2 . . . . . . 2 . 2 . . 2 . Power 1 | . . . . . . . . . . . . . . . . . . . . . . . . . . . . . . . . . . . . . . 1 . . . . Propulsion 5 | . . . . . 2 . . 1 . . . . . . . . . . . . . . . . . . . . . . . . . . . 1 . 1 . . . . Utility 11 | . . . . . 2 . . 1 . . . . . . 2 . . . . . . 2 . . . . . . 2 . . . . . . 1 . . . . 1 . Weapon 1 | . . . . . . . . . . . . . . . . . . . . . . . . . . . . . . . . . . . . . . . . . 1 . Parts Attached 909 | 8 23 8 3 14 35 28 36 81 3 50 8 2 2 2 77 8 57 5 . 5 3 60 . 48 . . 12 1 57 2 98 5 2 4 . 33 6 10 19 6 48 40 Power 29 | 1 2 . . . 2 2 3 3 . 1 . . . . . . . . . . 1 2 . 1 . . . . 2 . 1 . . . . . . 1 . . 3 4 Engine 6 | 1 2 . . . 1 1 1 . . . . . . . . . . . . . . . . . . . . . . . . . . . . . . . . . . . Core 12 | . . . . . 1 1 2 2 . 1 . . . . . . . . . . 1 2 . . . . . . 1 . . . . . . . . . . . 1 . Reactor 11 | . . . . . . . . 1 . . . . . . . . . . . . . . . 1 . . . . 1 . 1 . . . . . . 1 . . 2 4 Propulsion 100 | 2 8 . 1 2 10 4 6 9 . 9 1 . . 2 1 . 2 . . . . 7 . 7 . . 3 . 2 . 5 . . . . 1 . 4 4 2 5 3 Treads 28 | 2 5 . . 2 10 4 5 . . . . . . . . . . . . . . . . . . . . . . . . . . . . . . . . . . . Leg . | . . . . . . . . . . . . . . . . . . . . . . . . . . . . . . . . . . . . . . . . . . . Wheel 4 | . 3 . 1 . . . . . . . . . . . . . . . . . . . . . . . . . . . . . . . . . . . . . . . Hover 1 | . . . . . . . . 1 . . . . . . . . . . . . . . . . . . . . . . . . . . . . . . . . . . Flight 67 | . . . . . . . 1 8 . 9 1 . . 2 1 . 2 . . . . 7 . 7 . . 3 . 2 . 5 . . . . 1 . 4 4 2 5 3 Utility 362 | 2 3 1 . 6 4 6 4 34 1 21 2 . . . 30 4 14 3 . 1 . 13 . 20 . . 7 . 32 2 49 . . 4 . 21 5 4 10 3 34 22 Device 175 | 1 . 1 . 3 2 . 2 11 . 6 1 . . . 11 2 6 . . . . 8 . 8 . . 4 . 17 1 26 . . 1 . 13 4 3 9 1 23 11 Storage 17 | 1 3 . . . . . . 1 . . . . . . . . . . . . . 1 . . . . . . 2 . . . . . . 3 1 1 . . 1 3 Processor 19 | . . . . . . . . 3 . 1 . . . . 1 . . 1 . . . . . 2 . . . . . . . . . . . 1 . . . . 7 3 Hackware 39 | . . . . . . . . 5 1 6 . . . . 7 . 1 1 . 1 . 1 . 1 . . . . 6 . 5 . . . . 2 . . . . 2 . Protection 110 | . . . . 3 2 6 2 14 . 8 1 . . . 11 2 7 1 . . . 3 . 9 . . 3 . 7 1 18 . . 3 . 2 . . 1 1 1 4 Artifact 2 | . . . . . . . . . . . . . . . . . . . . . . . . . . . . . . . . . . . . . . . . 1 . 1 Weapon 418 | 3 10 7 2 6 19 16 23 35 2 19 5 2 2 . 46 4 41 2 . 4 2 38 . 20 . . 2 1 21 . 43 5 2 . . 11 1 1 5 1 6 11 Energy Gun 14 | 2 3 . . 1 4 . . . . . . . . . 2 . . . . . . 2 . . . . . . . . . . . . . . . . . . . . Energy Cannon 119 | . . . 1 . 1 . . 11 . 5 2 1 . . 15 1 12 1 . 1 1 12 . 6 . . 1 . 6 . 19 1 . . . 10 1 . 1 1 5 4 Ballistic Gun 38 | 1 3 3 . . 8 8 14 . . . . . . . 1 . . . . . . . . . . . . . . . . . . . . . . . . . . . Ballistic Cannon 8 | . . 1 1 3 2 . . . . . . . . . . . . . . . . . . . . . . . . . . . . . . . . . . . 1 . Launcher 62 | . 1 2 . 1 1 4 3 2 1 4 . . . . 7 1 9 . . . . 6 . 3 . . . 1 6 . 5 . 1 . . . . . . . . 4 Special Weapon 5 | . 3 . . . . . . . . . . . . . . . . . . . . . . . . . . . . . . 1 . . . . . 1 . . . . Impact Weapon 100 | . . 1 . 1 3 2 1 5 1 6 3 1 1 . 21 2 18 1 . 1 1 15 . 7 . . 1 . 4 . . 1 . . . 1 . . 2 . . . Slashing Weapon 30 | . . . . . . 2 5 15 . . . . 1 . . . 1 . . 1 . 1 . 4 . . . . . . . . . . . . . . . . . . Piercing Weapon 21 | . . . . . . . . . . . . . . . . . . . . 1 . . . . . . . . 1 . 11 2 1 . . . . . 2 . . 3 Special Melee Weapon 21 | . . . . . . . . 2 . 4 . . . . . . 1 . . . . 2 . . . . . . 4 . 8 . . . . . . . . . . . Unidentified Prototypes 58 | . 1 . . 1 3 . 1 8 . 1 . . . . 5 . 4 1 . . . 6 . 2 . . 6 . 3 . 1 1 . 2 . 2 1 1 4 . 1 3 Parts Lost 27 | . 1 1 . . 3 7 3 1 . . . . . . 1 . 1 . . . 1 . . 1 . . . . 1 . . . . . . . . . 1 3 . 2 Power 7 | . . . . . 1 1 1 . . . . . . . . . . . . . 1 . . . . . . . 1 . . . . . . . . . . 1 . 1 Propulsion 8 | . 1 . . . 1 2 2 . . . . . . . . . . . . . . . . . . . . . . . . . . . . . . . 1 1 . . Utility 7 | . . . . . 1 3 . 1 . . . . . . 1 . . . . . . . . . . . . . . . . . . . . . . . . 1 . . Weapon 5 | . . 1 . . . 1 . . . . . . . . . . 1 . . . . . . 1 . . . . . . . . . . . . . . . . . 1 Highest Loss Streak 4 | . 1 1 . . 3 4 2 1 . . . . . . 1 . 1 . . . 1 . . 1 . . . . 1 . . . . . . . . . 1 3 . 1 To Critical Strikes . | . . . . . . . . . . . . . . . . . . . . . . . . . . . . . . . . . . . . . . . . . . . Average Slot Usage (%) 98 | . 99 100 100 99 99 94 98 99 93 99 100 100 100 100 99 100 99 97 100 100 100 98 100 99 100 100 99 100 98 100 98 100 100 98 100 96 95 89 93 94 86 85 Engine 2 | . 14 14 14 14 7 . 4 . . . . . . . . . . . . . . . . . . . . . . . . . . . . . . . . . . . Core 3 | . . . . . 1 6 4 7 7 7 7 7 7 7 6 6 6 6 6 6 6 5 5 1 . . . . 2 5 1 . . . . . . . . . 1 . Reactor 1 | . . . . . . . . . . . . . . . . . . . . . . . . 3 5 5 5 5 2 . 3 5 5 5 5 4 4 3 4 4 3 3 Treads 8 | . 20 14 14 26 36 35 35 . . . . . . . . . . . . . . . . . . . . . . . . . . . . . . . . . . . Wheel 1 | . 7 14 14 1 . . . . . . . . . . . . . . . . . . . . . . . . . . . . . . . . . . . . . . Flight 20 | . . . . . . . . 37 38 37 38 38 38 38 33 33 32 32 31 31 31 26 27 26 27 27 27 27 25 25 24 25 25 25 25 27 27 27 28 29 26 25 Device 5 | . 14 14 14 2 6 2 8 1 . . . . . . 1 . . . . . . 4 5 6 5 5 5 5 8 9 6 5 5 6 10 8 9 8 12 11 8 11 Storage 7 | . 14 14 14 14 9 9 9 7 7 7 7 7 7 7 6 6 6 6 6 6 6 5 5 5 5 5 5 5 5 5 5 5 5 5 5 4 4 4 4 4 3 2 Processor 2 | . . . . . . . . . . . . . . . . . . 3 6 6 6 5 5 5 5 5 5 5 5 5 5 5 5 5 5 9 9 8 8 8 13 12 Hackware 18 | . . . . . . . . 22 16 24 23 23 23 23 26 26 26 22 25 25 25 26 27 27 27 27 27 27 31 35 35 35 35 32 30 27 27 23 20 20 19 14 Protection 9 | . . . . 11 19 21 18 5 7 4 6 7 7 7 9 12 12 12 12 12 12 10 11 9 11 11 10 11 8 6 8 10 10 10 10 8 9 8 8 8 3 3 Ballistic Gun 4 | . 17 13 14 14 9 14 16 . . . . . . . . . . . . . . . . . . . . . . . . . . . . . . . . . . . Ballistic Cannon 1 | . . 9 . 13 1 . . . . . . . . . . . . . . . . . . . . . . . . . . . . . . . . . . . . . Impact Weapon 3 | . . 3 8 . . . . . 6 6 6 6 2 7 5 5 5 5 6 5 5 4 5 4 5 5 4 5 4 5 5 5 5 5 5 4 4 4 3 4 3 2 Special Melee Weapon 2 | . . . . . . . . 6 7 6 7 7 7 7 6 6 5 . . . . 4 5 1 . . . . 4 . . . . . . . . . . . . . Naked Turns . | . . . . . . . . . . . . . . . . . . . . . . . . . . . . . . . . . . . . . . . . . . . Heaviest Build 118 | 14 95 95 102 101 112 118 118 27 28 30 23 23 23 23 32 29 28 25 25 25 28 35 30 47 40 40 40 45 55 49 59 51 51 53 53 68 71 71 80 86 80 90 Greatest Support 90 | 40 40 10 10 40 83 86 89 26 26 34 26 34 34 34 35 35 35 35 25 25 25 44 44 63 48 48 51 60 60 51 62 53 53 53 62 81 81 76 90 90 78 88 Greatest Overweight (x) 10 | . 9 9 10 9 1 1 1 1 1 1 . . . . 1 1 1 . . . 1 1 . . . . . . 2 . 1 . . . . . . 1 . 2 2 1 Average Overweight (x) . | . 3 9 9 2 1 1 1 . . . . . . . . . . . . . . . . . . . . . . . . . . . . . . . . . . . Largest Inventory Capacity 25 | 8 25 25 25 25 25 25 25 25 10 10 10 10 10 10 10 10 10 10 10 10 10 10 10 10 10 10 10 10 15 15 15 15 15 15 15 20 20 20 20 20 20 20 Average Capacity 15 | 7 19 25 25 25 25 25 25 10 10 10 10 10 10 10 10 10 10 10 10 10 10 10 10 10 10 10 10 10 14 15 15 15 15 15 15 17 20 20 20 20 20 18 Most Carried 25 | 6 25 25 25 25 25 25 25 25 10 10 10 10 10 10 10 10 10 10 10 10 10 10 10 10 10 10 10 10 15 15 15 15 15 15 15 20 20 20 20 19 20 20 Average Carried 15 | 3 16 24 24 24 24 24 24 9 9 9 9 10 8 10 9 9 9 10 10 10 9 9 9 9 10 10 9 10 13 15 14 15 15 14 15 15 19 19 19 18 19 17 Final Capacity 25 | 8 25 25 25 25 25 25 25 10 10 10 10 10 10 10 10 10 10 10 10 10 10 10 10 10 10 10 10 10 15 15 15 15 15 15 15 20 20 20 20 20 20 5 Final Carried 25 | 6 25 25 25 25 25 25 25 10 9 10 10 10 10 10 8 10 10 10 10 10 9 10 10 10 10 10 10 10 15 15 15 15 15 15 15 19 20 20 19 19 20 4 Class Distribution -------------------- 40% | Wizard-Sprinter 28% | Mutant 18% | Hacker-Sprinter 5% | Wizard-Scout Dominant Class ---------------- Mutant | -10/Materials Mutant | -10/Mines Mutant | -10/Exiles Mutant | -9/Mines Mutant | -8/Materials Mutant | -8/Garrison Mutant | -8/Materials Hacker-Sprinter | -7/Factory Hacker-Sprinter | -7/Waste Hacker-Sprinter | -7/Factory Hacker-Sprinter | -7/Lower Caves Hacker-Sprinter | -7/Lower Caves Hacker-Sprinter | -7/Data Miner Hacker-Sprinter | -6/Proximity Caves Hacker-Sprinter | -6/Factory Wizard-Sprinter | -6/Waste Wizard-Sprinter | -6/Factory Hacker-Sprinter | -6/Lower Caves Wizard-Sprinter | -6/Lower Caves Wizard-Sprinter | -6/Zion Wizard-Sprinter | -5/Proximity Caves Wizard-Sprinter | -5/Factory Wizard-Sprinter | -5/Waste Wizard-Sprinter | -5/Factory Wizard-Sprinter | -5/Upper Caves Wizard-Sprinter | -5/Upper Caves Wizard-Sprinter | -5/Warlord Wizard-Sprinter | -4/Proximity Caves Wizard-Sprinter | -4/Factory Wizard-Sprinter | -4/Waste Wizard-Sprinter | -4/Factory Wizard-Sprinter | -4/Upper Caves Wizard-Sprinter | -4/Upper Caves Wizard-Sprinter | -4/Zhirov Wizard-Sprinter | -3/Proximity Caves Wizard-Scout | -3/Research Wizard-Scout | -3/Quarantine Wizard-Scout | -2/Research Wizard-Scout | -2/Testing Wizard-Assassin | -2/Section 7 Wizard-Scout | -1/Access Wizard-Sprinter | -1/Command Resources | -11 -10 -10 -10 -9 -8 -8 -8 -7 -7 -7 -7 -7 -7 -6 -6 -6 -6 -6 -6 -6 -5 -5 -5 -5 -5 -5 -5 -4 -4 -4 -4 -4 -4 -4 -3 -3 -3 -2 -2 -2 -1 -1 ----------- Run | Jun Mat Min Exi Min Mat Gar Mat Fac Was Fac Low Low Dat Pro Fac Was Fac Low Low Zio Pro Fac Was Fac Upp Upp War Pro Fac Was Fac Upp Upp Zhi Pro Res Qua Res Tes Sec Acc Com Matter Collected 15262 | 298 478 262 . 183 790 603 1390 852 299 675 80 30 . 40 945 140 1020 50 10 20 50 920 . 660 . . 140 209 866 . 1207 77 146 . 22 491 240 537 59 . 651 822 Remotely . | . . . . . . . . . . . . . . . . . . . . . . . . . . . . . . . . . . . . . . . . . . . Salvage Created 17780 | 171 557 248 . 63 1135 683 1909 816 232 1186 192 242 22 9 1200 119 2088 180 . . . 972 . 939 . . . 162 1299 . 1050 86 88 . . 548 . 136 59 40 608 741 Parts 603 | 12 38 9 . 1 76 34 106 53 . 27 . . 2 . 34 3 60 3 . . . 29 . 28 . . . 5 42 . 13 4 . . . 7 . 3 1 2 1 10 Haulers Intercepted 28 | . 2 . . . 4 . 5 2 . 4 . . . . 3 . 1 . . . . 2 . 2 . . . . 3 . . . . . . . . . . . . . Recyclers Shooed 21 | . 1 . . . 4 . 1 1 . 3 . 2 . . . . 3 . . . . 1 . . . . . . 1 . . . . . . . . . . . 4 . Parts Field Recycled . | . . . . . . . . . . . . . . . . . . . . . . . . . . . . . . . . . . . . . . . . . . . Retrieved Matter . | . . . . . . . . . . . . . . . . . . . . . . . . . . . . . . . . . . . . . . . . . . . Parts Self-Destructed 22 | . . . . . . . . . . . . 4 . . . . . 3 2 . . . . . . . . 6 . . . 4 3 . . . . . . . . . Prevented 2 | . . . . . . . . . . . . . . . . . . . . . . . . . . . . . . . . 2 . . . . . . . . . . Kills | -11 -10 -10 -10 -9 -8 -8 -8 -7 -7 -7 -7 -7 -7 -6 -6 -6 -6 -6 -6 -6 -5 -5 -5 -5 -5 -5 -5 -4 -4 -4 -4 -4 -4 -4 -3 -3 -3 -2 -2 -2 -1 -1 ------- Run | Jun Mat Min Exi Min Mat Gar Mat Fac Was Fac Low Low Dat Pro Fac Was Fac Low Low Zio Pro Fac Was Fac Upp Upp War Pro Fac Was Fac Upp Upp Zhi Pro Res Qua Res Tes Sec Acc Com Combat Hostiles Destroyed 219 | . 10 9 . 2 21 20 30 1 1 11 . . . 2 19 . 26 . . . . 14 . 14 . . . 9 11 . 4 . 1 . . . . . . 1 . 13 Melee 9 | . . . . . . 2 . . . 1 . . . 1 1 . . . . . . . . 2 . . . . . . . . . . . . . . . . . 2 Guns 63 | . 10 3 . . 14 13 23 . . . . . . . . . . . . . . . . . . . . . . . . . . . . . . . . . . . Cannons 12 | . . 2 . . 5 . . 1 . 2 . . . . . . 1 . . . . 1 . . . . . . . . . . . . . . . . . . . . AOE 129 | . . 4 . 2 2 5 7 . 1 7 . . . . 17 . 23 . . . . 13 . 12 . . . 9 11 . 4 . 1 . . . . . . . . 11 Classes Destroyed 25 | 2 7 2 . . 4 1 2 1 1 . 1 . . 1 1 . . . . . . . . . . . . . . . . 1 . . . . . . 1 . . . Worker 24 | . . . . . 3 . 2 1 . 2 . . . . 4 . 4 . . . . 3 . . . . . . 2 . 2 . . . . . . . . . 1 . Builder 35 | . 1 1 . . 1 . 5 5 . 3 . . . . 2 . 4 . . . . 6 . . . . . . 6 . . . . . . . . . . . 1 . Tunneler 8 | 3 1 1 . . . . . 1 . . . . . . . . . . . . . 1 . . . . . . . . 1 . . . . . . . . . . . Hauler 28 | . 2 . . . 4 . 5 2 . 4 . . . . 3 . 1 . . . . 2 . 2 . . . . 3 . . . . . . . . . . . . . Recycler 55 | 1 1 1 . . 2 . 4 5 . 7 . . . . 3 . 8 . . . . 1 . 4 . . . . 6 . 5 . . . . 2 . . . . 5 . Minesweeper 1 | . . . . . . . . . . . . . . . . . . . . . . . . . . . . . . . . 1 . . . . . . . . . . Mechanic 11 | . 1 . . . 1 . . 1 . . . . . . . . 1 . . . . 1 . . . . . . 1 . 2 . . . . 1 . 1 . . . 1 Operator 8 | . 1 . . . . . 1 1 . 1 . . . . . . 1 . . . . . . . . . . . 1 . 1 . . . . . . . . . . 1 Drone 2 | . . . . . . . . . . . . . . 2 . . . . . . . . . . . . . . . . . . . . . . . . . . . . Watcher 56 | . 2 . . . . . 2 5 . 6 . . . . 8 . 3 . . . . 5 . 4 . . . . 5 . 7 . . . . 7 . 2 . . . . Swarmer 93 | . 3 . . . 4 6 3 . . 7 . . . . 16 . 7 . . . . 5 . 14 . . . 7 9 . 4 . . . . . . . . . . 8 Cutter 4 | . . . . . . . . . . . . . . . 1 . 2 . . . . . . . . . . . . . . . . . . . . . . 1 . . Grunt 77 | . 7 4 . 2 8 11 17 . . 2 . . . . 2 . 12 . . . . 7 . . . . . 2 2 . . . 1 . . . . . . . . . Brawler 6 | . . . . . . 2 1 . . . . . . . . . 1 . . . . 2 . . . . . . . . . . . . . . . . . . . . Duelist 5 | . . . . . 1 1 1 . . . . . . . . . 2 . . . . . . . . . . . . . . . . . . . . . . . . . Protector 2 | . . . . . . . 1 . . . . . . . . . 1 . . . . . . . . . . . . . . . . . . . . . . . . . Researcher 1 | . . . . . . . . . . . . . . . . . . . . . . . . . . . . . . . . . . . . . . . 1 . . . Sentry 11 | . . . . . 6 . 4 . . . . . . . . . 1 . . . . . . . . . . . . . . . . . . . . . . . . . Demolisher 1 | . . 1 . . . . . . . . . . . . . . . . . . . . . . . . . . . . . . . . . . . . . . . . Specialist 2 | . . . . . . . 2 . . . . . . . . . . . . . . . . . . . . . . . . . . . . . . . . . . . Hunter 3 | . . . . . 2 . 1 . . . . . . . . . . . . . . . . . . . . . . . . . . . . . . . . . . . Programmer 6 | . . . . . . . . 1 . 2 . . . . . . . . . . . . . . . . . . . . . . . . . . . . . . . 3 Compactor 1 | . . . . . . . . . 1 . . . . . . . . . . . . . . . . . . . . . . . . . . . . . . . . . Decomposer 5 | . . . . . . . . . . . 2 . . . . . . . . . . . . . . . . . . . . 3 . . . . . . . . . . Packrat 8 | . . . . . . . . . . . 1 4 . . . . . 3 . . . . . . . . . . . . . . . . . . . . . . . . Samaritan 2 | . . . . . . . . . . . 2 . . . . . . . . . . . . . . . . . . . . . . . . . . . . . . . Assembled 4 | . . 4 . . . . . . . . . . . . . . . . . . . . . . . . . . . . . . . . . . . . . . . . Martyr 4 | . . . . . . . . . 2 . . . . . . 2 . . . . . . . . . . . . . . . . . . . . . . . . . . Best Kill Streak 13 | 2 5 3 . 2 13 10 9 2 1 4 . . 1 2 6 . 8 . . . . 10 . 6 . . . 9 12 . 5 1 1 . . 3 . 1 1 1 2 5 Combat Bots Only 10 | . 3 3 . 2 8 10 6 1 1 4 . . . 2 5 . 5 . . . . 5 . 5 . . . 9 5 . 4 . 1 . . . . . . 1 . 5 Max Kills in Single Turn 6 | 1 2 1 . 1 2 2 2 1 1 2 1 1 1 1 5 1 4 1 . . . 6 . 5 . . . 4 4 . 3 1 1 . . 1 . 1 1 1 1 3 Gunslinging 1 | . 1 . . . 1 . . . . . . . . . . . . . . . . . . . . . . . . . . . . . . . . . . . . . Exploded 4 | . . 1 . 1 1 1 2 . 1 2 . . . . 4 . 4 . . . . 4 . 4 . . . 4 4 . 3 . 1 . . . . . . . . 3 Melee 1 | . . . . . . 1 . . . 1 . . . 1 1 . . . . . . . . 1 . . . . . . . . . . . . . . . . . 1 Uniques/NPCs Destroyed 3 | . . . . . . . . . . . . . 1 . . . . . . . . . . . . . . . . . . . . . . . . . . . . 2 Data Miner (-7/Data Miner) MAIN.C Shell (-1/Command) MAIN.C (-1/Command) Combat | -11 -10 -10 -10 -9 -8 -8 -8 -7 -7 -7 -7 -7 -7 -6 -6 -6 -6 -6 -6 -6 -5 -5 -5 -5 -5 -5 -5 -4 -4 -4 -4 -4 -4 -4 -3 -3 -3 -2 -2 -2 -1 -1 -------- Run | Jun Mat Min Exi Min Mat Gar Mat Fac Was Fac Low Low Dat Pro Fac Was Fac Low Low Zio Pro Fac Was Fac Upp Upp War Pro Fac Was Fac Upp Upp Zhi Pro Res Qua Res Tes Sec Acc Com Damage Taken 10644 | . 524 266 . . 1366 1498 1707 74 . 345 . 68 88 16 146 . 310 73 . . 41 277 . 209 . 40 30 91 377 . 177 . 88 . 25 30 342 187 274 768 70 1137 Core 1871 | . 61 64 . . 147 149 132 15 . 59 . 68 . 16 26 . 23 19 . . 23 74 . 27 . 12 17 . 113 . 13 . 40 . 25 . 30 43 45 236 . 394 Absorbed by Shields 29 | . . . . . . . . . . . . . . . . . . . . . . . . . . . 29 . . . . . . . . . . . . . . . Redirected to Shielding 304 | . . . . . . . . . . . . . . . . . 4 . . . . 18 . 15 . . . . 73 . 43 . . . . . 18 . . 133 . . Regen/Repaired (Parts) 2383 | . 51 . . . . . 377 . . 13 . . . . 146 3 292 . . . . 255 . 70 . . . . 429 . 46 . . . . 43 . 68 15 66 246 263 Core Remaining (%) 74 | 100 . . . 50 . . 22 . . . . . . 77 . . . . . . 89 . . . . . . 87 . . . . . . 83 . 97 . . 63 . 75 Volleys Fired 730 | 6 74 19 2 2 93 50 121 19 7 14 6 . . . 37 . 58 1 . . 2 34 . 20 . . . 8 28 1 37 2 4 . . 32 1 2 4 2 9 35 Largest 2 | 2 2 2 1 1 2 2 2 1 1 2 1 . . . 1 . 1 1 . . 1 1 . 1 . . . 1 1 1 1 1 1 . . 1 1 1 1 1 1 1 Hottest 136 | 60 100 65 60 33 111 63 58 90 46 136 90 . . . 90 . 113 113 . . 113 113 . 113 . . . 46 113 46 113 113 46 . . 113 113 5 113 113 113 113 Shots Fired 1052 | 12 139 30 2 4 173 97 230 19 7 15 6 . . . 37 . 58 1 . . 2 34 . 21 . . . 8 28 1 37 2 4 . . 32 1 2 4 2 9 35 Gun 604 | 12 133 11 . . 144 88 216 . . . . . . . . . . . . . . . . . . . . . . . . . . . . . . . . . . . Cannon 300 | . . 9 2 2 26 . . 18 . 9 6 . . . 28 . 41 1 . . 2 22 . 16 . . . . 13 . 34 2 . . . 32 1 . 4 2 9 21 Launcher 142 | . 2 10 . 2 3 9 14 1 7 6 . . . . 9 . 17 . . . . 12 . 5 . . . 8 15 1 3 . 4 . . . . . . . . 14 Special 6 | . 4 . . . . . . . . . . . . . . . . . . . . . . . . . . . . . . . . . . . . 2 . . . . Kinetic 518 | 6 77 20 . 2 109 88 216 . . . . . . . . . . . . . . . . . . . . . . . . . . . . . . . . . . . Thermal 385 | 6 60 . . . 58 . . 18 . 9 6 . . . 28 . 41 1 . . 2 22 . 16 . . . . 13 . 34 2 . . . 32 1 . 4 2 9 21 Explosive 142 | . 2 10 . 2 3 9 14 1 7 6 . . . . 9 . 17 . . . . 12 . 5 . . . 8 15 1 3 . 4 . . . . . . . . 14 Electromagnetic 5 | . . . 2 . 3 . . . . . . . . . . . . . . . . . . . . . . . . . . . . . . . . . . . . . Robot Hit Streak 13 | 5 11 6 . . 13 8 9 3 10 11 . . . . 3 . 6 . . . . 3 . 4 . . . 6 4 . 4 . 6 . . . . 2 . . . 6 Robot Miss Streak 6 | 1 6 5 . 1 6 3 6 . . 2 . . . . . . 1 . . . . 1 . . . . . 1 1 . . . . . . 1 . . . . . 1 Penetration Max . | . . . . . . . . . . . . . . . . . . . . . . . . . . . . . . . . . . . . . . . . . . . Secondary Targets 12 | . 1 1 . . 2 5 3 . . . . . . . . . . . . . . . . . . . . . . . . . . . . . . . . . . . Max Gunslinging Chain 1 | . 1 1 . . 1 1 1 . . . . . . . . . . . . . . . . . . . . . . . . . . . . . . . . . . . Shots Hit Robots 798 | 9 88 17 . . 125 66 132 42 14 46 5 7 1 2 25 2 33 3 . . . 26 . 19 . . . 2 25 . 21 4 3 . . 11 . 5 3 1 11 50 Core Hits 506 | 4 37 20 . 3 57 33 91 15 5 13 . 1 1 . 26 . 49 2 . . . 31 . 17 . . . 21 29 . 7 1 1 . . 2 . 1 1 . . 38 Critical Kills 12 | . . 1 . . . 1 . . . 2 . . . . 2 . 1 . . . . . . . . . . . 2 . 1 . . . . 2 . . . . . . Critical Parts Destroyed 55 | . . . . . 1 3 . 2 3 8 2 . . . 5 . 9 . . . . 1 . 1 . . . . 5 . 5 2 1 . . 4 . 2 . . 1 . Critical Strikes 72 | . . 1 . . 5 4 . 3 3 10 2 . . . 7 . 10 . . . . 1 . 1 . . . . 7 . 6 2 1 . . 6 . 2 . . 1 . Burn 4 | . . . . . 4 . . . . . . . . . . . . . . . . . . . . . . . . . . . . . . . . . . . . . Meltdown 1 | . . . . . . . . . . . . . . . . . . . . . . . . . . . . . 1 . . . . . . . . . . . . . Destroy 5 | . . 1 . . 1 3 . . . . . . . . . . . . . . . . . . . . . . . . . . . . . . . . . . . . Smash 61 | . . . . . . 1 . 2 3 10 2 . . . 7 . 10 . . . . 1 . 1 . . . . 6 . 6 2 1 . . 6 . 2 . . 1 . Sever 1 | . . . . . . . . 1 . . . . . . . . . . . . . . . . . . . . . . . . . . . . . . . . . . Melee Attacks 1023 | . . 18 . 1 7 20 23 88 7 76 6 7 22 9 105 2 91 7 3 1 2 63 . 75 . . 40 1 84 . 98 11 2 . 2 39 5 11 11 6 33 47 Impact 743 | . . 18 . 1 7 14 8 5 7 73 6 5 . 9 105 2 83 . . . . 62 . 38 . . 10 . 83 . 88 9 1 . 2 39 5 11 7 4 33 8 Slashing 210 | . . . . . . 6 15 79 . . . . 22 . . . 8 7 3 1 2 . . 36 . . 30 1 . . . . . . . . . . . . . . Piercing . | . . . . . . . . . . . . . . . . . . . . . . . . . . . . . . . . . . . . . . . . . . . Entropic 58 | . . . . . . . . . . . . . . . . . . . . . . . . . . . . . . . 10 2 1 . . . . . 4 2 . 39 Sneak Attacks 163 | . . 5 . . . . 4 22 4 20 5 4 1 1 12 2 15 3 . . . 12 . 9 . . . . 10 . 13 4 . . . 4 . 2 1 . 8 2 Combat Hostiles 2 | . . . . . . . . . . . . . . 1 1 . . . . . . . . . . . . . . . . . . . . . . . . . . . Follow-up Attacks 24 | . . . . . . 1 . . . . . . . . . . 1 . . . . . . 4 . . . . . . . . . . . . . . 1 1 . 16 Damage Inflicted 55606 | 107 1166 974 . 141 2448 1562 3611 2262 2070 3762 566 385 79 156 3903 142 5888 314 . . . 3725 . 2546 . . . 1451 4062 . 2517 424 385 . . 933 . 281 268 49 1015 8414 Guns 6234 | 107 1083 108 . . 1745 1015 2176 . . . . . . . . . . . . . . . . . . . . . . . . . . . . . . . . . . . Cannons 1171 | . . 68 . . 356 . . 40 . 230 . . . . . . 199 . . . . 117 . . . . . . 119 . 42 . . . . . . . . . . . Explosions 21942 | . 66 536 . 119 327 468 1180 89 1657 869 . . . . 2114 . 3275 . . . . 2051 . 1233 . . . 1451 2605 . 523 . 223 . . . . . . . . 3156 Melee 26191 | . . 262 . . . 79 246 2133 413 2663 566 385 79 156 1789 142 2414 314 . . . 1557 . 1313 . . . . 1338 . 1952 424 162 . . 933 . 281 268 49 1015 5258 Ramming 68 | . 17 . . 22 20 . 9 . . . . . . . . . . . . . . . . . . . . . . . . . . . . . . . . . . . Kinetic 5345 | 51 663 176 . . 1264 1015 2176 . . . . . . . . . . . . . . . . . . . . . . . . . . . . . . . . . . . Thermal 2058 | 56 420 . . . 835 . . 40 . 230 . . . . . . 199 . . . . 117 . . . . . . 119 . 42 . . . . . . . . . . . Explosive 21896 | . 66 536 . 119 281 468 1180 89 1657 869 . . . . 2114 . 3275 . . . . 2051 . 1233 . . . 1451 2605 . 523 . 223 . . . . . . . . 3156 Electromagnetic 48 | . . . . . 48 . . . . . . . . . . . . . . . . . . . . . . . . . . . . . . . . . . . . . Impact 18210 | . . 262 . . . 46 . 279 413 2663 566 385 . 156 1789 142 2161 . . . . 1557 . 1017 . . . . 1338 . 1952 424 162 . . 933 . 281 180 49 1015 440 Slashing 3075 | . . . . . . 33 246 1854 . . . . 79 . . . 253 314 . . . . . 296 . . . . . . . . . . . . . . . . . . Piercing . | . . . . . . . . . . . . . . . . . . . . . . . . . . . . . . . . . . . . . . . . . . . Entropic 4906 | . . . . . . . . . . . . . . . . . . . . . . . . . . . . . . . . . . . . . . . 88 . . 4818 Highest Corruption 10 | . . . 4 4 . . . 2 . 2 . . . . . . . . . . . . 10 10 . . . . 2 5 5 1 1 1 1 . 2 . . . . 5 Average Corruption 3 | . . . 3 4 . . . 1 . 1 . . . . . . . . . . . . 10 8 . . . . 1 5 1 1 1 1 1 . 1 . . . . 4 Corruption Purged 23 | . . . . . . . . 2 . 3 . . . . . . . . . . . . . 10 . . . . 3 . 5 . . . . . . . . . . . Corruption Blocked 77 | . . . . . . . . . . . . . . . . . . . . . . . . . . . . . . . . . . . . . . . 20 . . 57 Effects 93 | . . . 1 27 . . . 3 . . . . . . . . . . . . . . 3 32 . . . . . 2 5 3 2 . 1 . 1 . . . . 13 Message Errors 19 | . . . . 6 . . . . . . . . . . . . . . . . . . . 7 . . . . . . 1 . . . 1 . . . . . . 4 Matter Fused 18 | . . . 1 1 . . . . . . . . . . . . . . . . . . 1 5 . . . . . 1 2 2 1 . . . . . . . . 4 Heat Flow Errors 12 | . . . . 5 . . . . . . . . . . . . . . . . . . . 6 . . . . . . . 1 . . . . . . . . . . Energy Discharges 15 | . . . . 4 . . . 1 . . . . . . . . . . . . . . 1 4 . . . . . . 1 . . . . . 1 . . . . 3 Parts Fused 1 | . . . . . . . . . . . . . . . . . . . . . . . . 1 . . . . . . . . . . . . . . . . . . Data Loss (minor) 13 | . . . . 6 . . . 1 . . . . . . . . . . . . . . . 3 . . . . . . 1 . 1 . . . . . . . . 1 Data Loss (major) 3 | . . . . . . . . 1 . . . . . . . . . . . . . . 1 . . . . . . 1 . . . . . . . . . . . . Misfires 3 | . . . . 2 . . . . . . . . . . . . . . . . . . . 1 . . . . . . . . . . . . . . . . . . Alerts 5 | . . . . 3 . . . . . . . . . . . . . . . . . . . 1 . . . . . . . . . . . . . . . . . 1 Misdirections 4 | . . . . . . . . . . . . . . . . . . . . . . . . 4 . . . . . . . . . . . . . . . . . . Overload Shots . | . . . . . . . . . . . . . . . . . . . . . . . . . . . . . . . . . . . . . . . . . . . Overflow Damage 11551 | . . 50 . . 16 . 66 535 163 1408 555 119 . 108 1160 32 1640 86 . . . 958 . 402 . . . 14 906 . 1188 257 162 . . 533 . 212 . 34 477 470 Projectiles 46 | . . . . . . . . . . 46 . . . . . . . . . . . . . . . . . . . . . . . . . . . . . . . . Explosions 788 | . . 17 . . 16 . . 9 . 164 . . . . 112 . 131 . . . . 101 . 1 . . . 14 120 . 68 . . . . . . . . . . 35 Melee 10717 | . . 33 . . . . 66 526 163 1198 555 119 . 108 1048 32 1509 86 . . . 857 . 401 . . . . 786 . 1120 257 162 . . 533 . 212 . 34 477 435 Knockbacks 75 | . . 2 . 1 1 . . 1 3 11 . 2 . . 8 1 9 . . . . 4 . 4 . . . . 6 . 7 . . . . 3 . . 2 . 7 3 Impact 73 | . . 1 . 1 . . . 1 3 11 . 2 . . 8 1 9 . . . . 4 . 4 . . . . 6 . 7 . . . . 3 . . 2 . 7 3 Kinetic 2 | . . 1 . . 1 . . . . . . . . . . . . . . . . . . . . . . . . . . . . . . . . . . . . . Secondary . | . . . . . . . . . . . . . . . . . . . . . . . . . . . . . . . . . . . . . . . . . . . Self-Inflicted Damage 307 | . 3 20 . . . 75 50 . . 16 . . . . . . . . . . . 103 . . . . . 40 . . . . . . . . . . . . . . Shots 10 | . . 1 . . . 3 2 . . 1 . . . . . . . . . . . 2 . . . . . 1 . . . . . . . . . . . . . . Rammed 10 | . 3 . . 3 3 . 1 . . . . . . . . . . . . . . . . . . . . . . . . . . . . . . . . . . . Targets Rammed 12 | . 3 . . 3 4 . 2 . . . . . . . . . . . . . . . . . . . . . . . . . . . . . . . . . . . Kicked . | . . . . . . . . . . . . . . . . . . . . . . . . . . . . . . . . . . . . . . . . . . . Crushed 2 | . . . . . 1 . 1 . . . . . . . . . . . . . . . . . . . . . . . . . . . . . . . . . . . Highest Temperature 372 | . 136 25 22 205 309 302 210 174 81 150 176 166 178 2 214 152 217 54 . . 108 208 . 235 1 . 7 158 159 9 168 216 24 . 26 234 166 196 372 316 220 262 Average Temperature 52 | . 31 9 12 80 102 91 77 24 27 17 26 50 61 2 62 96 78 23 . . 42 60 . 79 1 . 3 59 50 6 59 80 13 . 16 69 69 69 85 109 48 71 Received Heat Transfer 2695 | . 231 57 . . 612 540 801 9 . 9 . 12 . . 27 . 45 . . . . 42 . 9 . . . . 36 . 9 . 27 . . . 76 9 72 36 . 36 Effects 6 | . . . . . 1 . . . . . . . . . . . . . . . . . . . . . . . . . . . . . . . . . . 4 . 1 Energy Bleed 2 | . . . . . 1 . . . . . . . . . . . . . . . . . . . . . . . . . . . . . . . . . . . . 1 Interference 3 | . . . . . . . . . . . . . . . . . . . . . . . . . . . . . . . . . . . . . . . . 3 . . Damage (minor) 1 | . . . . . . . . . . . . . . . . . . . . . . . . . . . . . . . . . . . . . . . . 1 . . Siege Activations . | . . . . . . . . . . . . . . . . . . . . . . . . . . . . . . . . . . . . . . . . . . . Robots Corrupted . | . . . . . . . . . . . . . . . . . . . . . . . . . . . . . . . . . . . . . . . . . . . Combat Hostiles . | . . . . . . . . . . . . . . . . . . . . . . . . . . . . . . . . . . . . . . . . . . . Parts Fried 204 | . . 3 . . . . . 5 6 24 1 1 . 2 22 6 22 . . . . 21 . 13 . . . . 18 . 27 . 1 . . 15 . 4 . 2 10 1 Impact Corruptions 300 | . . 2 . . . . . 9 3 38 28 6 . 3 31 2 40 . . . . 23 . 14 . . . . 22 . 24 12 4 . . 14 . 2 1 1 12 9 Robots Melted 1 | . . . . . . . . . . . . . . . . . . . . . . . . . . . . . 1 . . . . . . . . . . . . . Combat Hostiles . | . . . . . . . . . . . . . . . . . . . . . . . . . . . . . . . . . . . . . . . . . . . Parts Melted 10 | . 2 . . . 6 . . . . 2 . . . . . . . . . . . . . . . . . . . . . . . . . . . . . . . . Heat Transferred 3769 | 125 950 . . . 1900 . . 50 . 300 . . . . . . 185 . . . . 111 . . . . . . 111 . 37 . . . . . . . . . . . Parts Sabotaged . | . . . . . . . . . . . . . . . . . . . . . . . . . . . . . . . . . . . . . . . . . . . Parts Stolen . | . . . . . . . . . . . . . . . . . . . . . . . . . . . . . . . . . . . . . . . . . . . Parts Stripped . | . . . . . . . . . . . . . . . . . . . . . . . . . . . . . . . . . . . . . . . . . . . Power Chain Reactions 1 | . . . . . 1 . . . . . . . . . . . . . . . . . . . . . . . . . . . . . . . . . . . . . Missiles Intercepted . | . . . . . . . . . . . . . . . . . . . . . . . . . . . . . . . . . . . . . . . . . . . Latent Energy Used 215 | . . . 215 . . . . . . . . . . . . . . . . . . . . . . . . . . . . . . . . . . . . . . . LE Corruption 4 | . . . 4 . . . . . . . . . . . . . . . . . . . . . . . . . . . . . . . . . . . . . . . Alert | -11 -10 -10 -10 -9 -8 -8 -8 -7 -7 -7 -7 -7 -7 -6 -6 -6 -6 -6 -6 -6 -5 -5 -5 -5 -5 -5 -5 -4 -4 -4 -4 -4 -4 -4 -3 -3 -3 -2 -2 -2 -1 -1 ------- Run | Jun Mat Min Exi Min Mat Gar Mat Fac Was Fac Low Low Dat Pro Fac Was Fac Low Low Zio Pro Fac Was Fac Upp Upp War Pro Fac Was Fac Upp Upp Zhi Pro Res Qua Res Tes Sec Acc Com Peak Influence 2192 | 20 199 180 . 62 406 649 687 500 217 831 . . . . 521 71 673 . . . . 597 115 372 . . . . 452 211 647 . . . . 428 2163 1609 2192 1833 1105 563 Initial 1241 | . 13 69 . . 24 191 315 312 95 123 . . . . 156 23 49 . . . . . 100 77 . . . . 163 144 147 . . . . 20 240 1216 821 1241 1100 284 Average 308 | 6 88 40 . 6 161 486 390 243 169 597 . . . . 209 58 363 . . . . 265 111 166 . . . . 176 164 224 . . . . 269 1863 1442 1779 1723 406 314 Maximum Alert Level 5 | . . . . . 2 2 2 2 1 3 . . . . 2 . 2 . . . . 2 . 1 . . . . 2 1 2 . . . . 2 5 5 5 5 4 2 Low Security (%) 42 | 100 100 100 . 100 61 23 . 46 90 2 . . . . 64 100 4 . . . . 48 100 60 . . . . 59 86 40 . . . . 10 . . . . . 16 Level 1 31 | . . . . . 38 5 48 46 9 5 . . . . 23 . 67 . . . . 16 . 39 . . . . 27 13 56 . . . . 87 . . . . 61 65 Level 2 21 | . . . . . . 71 51 7 . 73 . . . . 11 . 28 . . . . 34 . . . . . . 12 . 3 . . . . 1 . . . . 34 18 Level 3 1 | . . . . . . . . . . 18 . . . . . . . . . . . . . . . . . . . . . . . . . . . . . . . . Level 4 1 | . . . . . . . . . . . . . . . . . . . . . . . . . . . . . . . . . . . . . . 98 . . 4 . Level 5 . | . . . . . . . . . . . . . . . . . . . . . . . . . . . . . . . . . . . . . . 1 . . . . High Security . | . . . . . . . . . . . . . . . . . . . . . . . . . . . . . . . . . . . . . . . . . . . Max Security 1 | . . . . . . . . . . . . . . . . . . . . . . . . . . . . . . . . . . . . . 99 . 99 99 . . Squads Dispatched 160 | . 5 . . . 3 . 7 13 . 13 . . . . 11 . 14 . . . . 7 . 10 . . . 1 17 . 10 . . . . 8 6 2 16 7 2 8 Investigation 52 | . 4 . . . 2 . 2 7 . 7 . . . . 4 . 3 . . . . 3 . 5 . . . . 5 . 3 . . . . 3 . 2 . . 1 1 Extermination 24 | . . . . . . . . 2 . 2 . . . . 3 . 2 . . . . 1 . 3 . . . . 3 . 3 . . . . 2 . . . . 1 2 Reinforcement 43 | . 1 . . . 1 . 2 3 . 3 . . . . 3 . 7 . . . . 3 . 2 . . . . 5 . 3 . . . . 3 . . 2 1 . 4 Assault 32 | . . . . . . . 1 1 . 1 . . . . 1 . 2 . . . . . . . . . . 1 . . . . . . . . 6 . 12 6 . 1 Garrison 9 | . . . . . . . 2 . . . . . . . . . . . . . . . . . . . . . 4 . 1 . . . . . . . 2 . . . Intercept . | . . . . . . . . . . . . . . . . . . . . . . . . . . . . . . . . . . . . . . . . . . . Searches Triggered 1 | . . . . . . . . . . . . . . . . . 1 . . . . . . . . . . . . . . . . . . . . . . . . . Construction Impeded 6 | . . . . . . . . . . . . . . . . . 2 . . . . 1 . . . . . . 1 . 1 . . . . 1 . . . . . . Haulers Reinforced 4 | . . . . . . . . 1 . 1 . . . . . . . . . . . . . . . . . . 1 . 1 . . . . . . . . . . . Active Scanning Responses . | . . . . . . . . . . . . . . . . . . . . . . . . . . . . . . . . . . . . . . . . . . . Cargo Convoy Interrupts 6 | . . . . . . . . 1 . . . . . . 1 . 1 . . . . 1 . 1 . . . . . . 1 . . . . . . . . . . . Stealth | -11 -10 -10 -10 -9 -8 -8 -8 -7 -7 -7 -7 -7 -7 -6 -6 -6 -6 -6 -6 -6 -5 -5 -5 -5 -5 -5 -5 -4 -4 -4 -4 -4 -4 -4 -3 -3 -3 -2 -2 -2 -1 -1 --------- Run | Jun Mat Min Exi Min Mat Gar Mat Fac Was Fac Low Low Dat Pro Fac Was Fac Low Low Zio Pro Fac Was Fac Upp Upp War Pro Fac Was Fac Upp Upp Zhi Pro Res Qua Res Tes Sec Acc Com Distress Signals 27 | . . . . . 4 . . 1 . . . . . . . . 1 . . . . . . . . . 1 . 1 . 3 . . . . 3 3 4 1 3 . 2 Communications Jammed 18 | . . . . . . . . . . . . . . . . . . . . . . 3 . . . . . . 13 . 2 . . . . . . . . . . . Distress Signals 18 | . . . . . . . . . . . . . . . . . . . . . . 3 . . . . . . 13 . 2 . . . . . . . . . . . Times Spotted 739 | . 19 7 . 1 29 19 37 22 5 38 . 5 4 2 25 6 42 3 3 . 2 18 6 36 4 8 22 18 31 6 54 . 11 . 2 27 44 32 54 54 10 33 Peak Tracking Total 40 | . 4 2 . 1 5 6 5 8 4 5 . 4 4 1 4 6 8 4 3 . 2 6 6 9 4 5 8 14 4 6 15 . 4 . 2 9 22 13 29 40 5 11 Tactical Retreats 96 | . . . . . . 1 2 5 . 3 . 4 . . 1 1 11 2 1 . . 1 . 6 1 1 . 2 9 . 12 . 3 . 1 7 5 6 6 2 1 2 Traps | -11 -10 -10 -10 -9 -8 -8 -8 -7 -7 -7 -7 -7 -7 -6 -6 -6 -6 -6 -6 -6 -5 -5 -5 -5 -5 -5 -5 -4 -4 -4 -4 -4 -4 -4 -3 -3 -3 -2 -2 -2 -1 -1 ------- Run | Jun Mat Min Exi Min Mat Gar Mat Fac Was Fac Low Low Dat Pro Fac Was Fac Low Low Zio Pro Fac Was Fac Upp Upp War Pro Fac Was Fac Upp Upp Zhi Pro Res Qua Res Tes Sec Acc Com Traps Triggered 21 | . 1 . . . . 3 1 2 . . . . . . 1 . 1 . . . . 3 . . . . . . 4 . 1 . . . . . 3 . 1 . . . Indirectly . | . . . . . . . . . . . . . . . . . . . . . . . . . . . . . . . . . . . . . . . . . . . Trap Hack Attempts 292 | . . . . . . . . 108 . 102 . . . . 24 . 29 . . . . . . 23 . . . . 6 . . . . . . . . . . . . . Triggered 1 | . . . . . . . . . . . . . . . 1 . . . . . . . . . . . . . . . . . . . . . . . . . . . Disarmed 19 | . . . . . . . . 4 . 6 . . . . 2 . . . . . . . . 7 . . . . . . . . . . . . . . . . . . Reprogrammed 84 | . . . . . . . . 17 . 17 . . . . 7 . 8 . . . . . . 5 . . . . 14 . 10 . . . . 6 . . . . . . Reused 39 | . . . . . . . . 6 . 7 . . . . 6 . 5 . . . . 2 . 2 . . . . 4 . 3 . . . . 4 . . . . . . Traps Extracted 37 | . . . . . . . . 7 . 7 . . . . 7 . 2 . . . . 2 . 5 . . . . 1 . 6 . . . . . . . . . . . Installed 26 | . . . . . . . . 4 . 4 . . . . 7 . 2 . . . . 4 . 2 . . . . . . 3 . . . . . . . . . . . Triggered 50 | . . . . . . . . 6 . 7 . . . . 6 . 7 . . . . 2 . 2 . . 7 . 4 . 3 1 1 . . 4 . . . . . . Most Traps Carried 8 | . . . . . . . . 6 3 6 6 6 6 6 8 6 8 6 6 6 6 6 4 5 3 3 3 3 4 3 8 6 6 6 6 6 6 . . . . . Time Bombs Activated 1 | . . . . . . . . . . . . . . . . . . . . . . . . . . . 1 . . . . . . . . . . . . . . . Exploded 3 | . . . . . . . . 1 . . . . . . . . . . . . . . . . . . 1 . . . 1 . . . . . . . . . . . Machines | -11 -10 -10 -10 -9 -8 -8 -8 -7 -7 -7 -7 -7 -7 -6 -6 -6 -6 -6 -6 -6 -5 -5 -5 -5 -5 -5 -5 -4 -4 -4 -4 -4 -4 -4 -3 -3 -3 -2 -2 -2 -1 -1 ---------- Run | Jun Mat Min Exi Min Mat Gar Mat Fac Was Fac Low Low Dat Pro Fac Was Fac Low Low Zio Pro Fac Was Fac Upp Upp War Pro Fac Was Fac Upp Upp Zhi Pro Res Qua Res Tes Sec Acc Com Machines Disabled 58 | . 2 . . . 4 2 3 . . 9 . . 1 . 6 . 3 . . . . 4 . 4 . . . . 7 . 2 1 . . . . 2 . 3 2 . 3 Max in Single Turn 4 | . 1 . . . 2 1 1 . . 4 . . 1 . 4 . 1 . . . . 1 . 1 . . . . 2 . 1 1 . . . . 1 . 1 1 . 1 Garrison Access 25 | . . . . . . . . 3 . 3 . . . . 3 . 3 . . . . 3 . 1 . . . . 2 . 3 . . . . . . 2 . . 2 . Garrison Relay 1 | . . . . . . 1 . . . . . . . . . . . . . . . . . . . . . . . . . . . . . . . . . . . . Machines Repaired . | . . . . . . . . . . . . . . . . . . . . . . . . . . . . . . . . . . . . . . . . . . . Machines Sabotaged . | . . . . . . . . . . . . . . . . . . . . . . . . . . . . . . . . . . . . . . . . . . . Overloaded Fab Kills . | . . . . . . . . . . . . . . . . . . . . . . . . . . . . . . . . . . . . . . . . . . . Hacking | -11 -10 -10 -10 -9 -8 -8 -8 -7 -7 -7 -7 -7 -7 -6 -6 -6 -6 -6 -6 -6 -5 -5 -5 -5 -5 -5 -5 -4 -4 -4 -4 -4 -4 -4 -3 -3 -3 -2 -2 -2 -1 -1 --------- Run | Jun Mat Min Exi Min Mat Gar Mat Fac Was Fac Low Low Dat Pro Fac Was Fac Low Low Zio Pro Fac Was Fac Upp Upp War Pro Fac Was Fac Upp Upp Zhi Pro Res Qua Res Tes Sec Acc Com Machines Accessed 305 | . 7 1 2 . 5 . 9 29 . 32 . . 3 . 34 . 27 . 1 1 . 20 . 25 . . 5 . 25 . 26 . 4 4 . 17 . 7 . . 12 9 Terminals 159 | . 4 1 . . 4 . 7 15 . 17 . . . . 18 . 14 . . . . 8 . 13 . . . . 14 . 15 . 1 . . 11 . 2 . . 8 7 Fabricators 43 | . . . . . . . . 5 . 6 . . . . 5 . 3 . . . . 3 . 6 . . . . 5 . 4 . . . . 3 . 2 . . 1 . Repair Stations 19 | . 1 . . . . . 1 . . 1 . . . . 2 . 2 . . . . 2 . 2 . . . . 2 . 1 . . . . 1 . 1 . . 1 2 Recycling Units 32 | . 2 . . . . . . 6 . 5 . . . . 5 . 4 . . . . 2 . 2 . . . . 2 . 2 . . . . 2 . . . . . . Scanalyzers 8 | . . . . . . . . 1 . . . . . . 1 . 2 . . . . 2 . 1 . . . . . . 1 . . . . . . . . . . . Garrison Access 25 | . . . . . 1 . 1 2 . 3 . . . . 3 . 2 . . . . 3 . 1 . . . . 2 . 3 . . . . . . 2 . . 2 . Total Hacks 1170 | . 14 2 2 . 15 . 32 93 . 96 . . 22 . 99 . 125 . 1 2 . 101 . 109 . . 9 . 122 . 110 . 6 14 . 79 . 24 . . 51 42 Successful 883 | . 6 2 2 . 7 . 15 66 . 68 . . 22 . 78 . 92 . 1 2 . 75 . 93 . . 9 . 97 . 102 . 6 14 . 58 . 16 . . 29 23 Failed 286 | . 7 . . . 8 . 17 27 . 28 . . . . 21 . 33 . . . . 26 . 16 . . . . 25 . 8 . . . . 21 . 8 . . 22 19 Catastrophic 39 | . 1 . . . 2 . 1 5 . 4 . . . . 3 . 5 . . . . 2 . 3 . . . . 4 . . . . . . 3 . . . . 3 3 Database Lockouts 1 | . 1 . . . . . . . . . . . . . . . . . . . . . . . . . . . . . . . . . . . . . . . . . Manual 608 | . 8 1 1 . 10 . 15 57 . 42 . . . . 54 . 72 . . . . 53 . 55 . . 1 . 68 . 65 1 . . . 55 . 10 . . 16 24 Terminals 671 | . 9 2 . . 11 . 20 55 . 51 . . . . 56 . 76 . . . . 51 . 60 . . . . 79 . 69 . 1 . . 52 . 7 . . 37 35 Fabricators 180 | . . . . . . . . 12 . 24 . . . . 16 . 10 . . . . 16 . 23 . . . . 26 . 22 . . . . 17 . 10 . . 4 . Repair Stations 76 | . 3 . . . . . 7 . . 2 . . . . 3 . 9 . . . . 10 . 12 . . . . 7 . 2 . . . . 2 . 4 . . 8 7 Recycling Units 112 | . 2 . . . . . . 20 . 14 . . . . 19 . 16 . . . . 10 . 6 . . . . 8 . 9 . . . . 8 . . . . . . Scanalyzers 35 | . . . . . . . . 4 . . . . . . 2 . 11 . . . . 6 . 7 . . . . . . 5 . . . . . . . . . . . Garrison Access 41 | . . . . . 4 . 5 2 . 5 . . . . 3 . 3 . . . . 8 . 1 . . . . 2 . 3 . . . . . . 3 . . 2 . Terminal Hacks 393 | . 1 2 2 . 6 . 5 23 . 22 . . 22 . 25 . 37 . 1 2 . 26 . 37 . . 9 . 45 . 46 . 6 14 . 27 . 3 . . 17 15 Record 18 | . . . 1 . . . . . . . . . 2 . . . . . . . . . . . . . 7 . . . . . 4 3 . 1 . . . . . . Part Schematic 42 | . . . . . . . 1 3 . . . . 12 . 3 . . . . 2 . 1 . 3 . . . . 4 . 4 . . 3 . 5 . . . . 1 . Robot Schematic 6 | . . . . . . . . 1 . . . . 5 . . . . . . . . . . . . . . . . . . . . . . . . . . . . . Robot Analysis 8 | . 1 1 . . . . . . . . . . . . . . . . . . . . . . . . . . . . . . . 4 . 2 . . . . . . Prototype ID Bank 21 | . . . . . . . . 1 . 1 . . 3 . 1 . 2 . . . . 2 . 2 . . . . 2 . 2 . . 4 . 1 . . . . . . Open Door 9 | . . . . . . . . . . . . . . . . . . . 1 . . 1 . . . . 2 . . . . . 2 . . . . . . . 3 . Level Access Points 7 | . . . . . . . . . . 1 . . . . 1 . 1 . . . . 1 . 1 . . . . 1 . 1 . . . . . . . . . . . Branch Access Points 11 | . . . . . . . . 1 . 1 . . . . 1 . 1 . . . . 1 . 1 . . . . 1 . 1 . . . . 1 . 1 . . 1 . Emergency Access Points 2 | . . . . . . . . . . . . . . . . . 1 . . . . . . . . . . . . . 1 . . . . . . . . . . . Machine Index 7 | . . . . . . . . . . . . . . . 1 . 1 . . . . . . 1 . . . . 1 . 1 . . . . . . 1 . . 1 . Terminal Index 5 | . . . . . . . . 1 . 1 . . . . . . . . . . . . . 1 . . . . 1 . . . . . . . . . . . . 1 Fabricator Index 2 | . . . . . . . . . . . . . . . . . . . . . . . . . . . . . . . . . . . . 1 . . . . 1 . Repair Station Index 6 | . . . . . . . . . . 1 . . . . . . . . . . . . . 1 . . . . . . . . . . . 1 . 1 . . 1 1 Scanalyzer Index 3 | . . . . . . . . . . 1 . . . . . . . . . . . . . 1 . . . . . . . . . . . . . . . . 1 . Garrison Index 4 | . . . . . . . . 1 . 1 . . . . . . . . . . . . . 1 . . . . . . . . . . . 1 . . . . . . Alert Level 26 | . . . . . 1 . 1 1 . 3 . . . . 2 . 4 . . . . 2 . 2 . . . . 4 . 2 . . . . 1 . . . . 1 2 Unreport Threat 32 | . . . . . 1 . . 1 . 4 . . . . 4 . 4 . . . . 2 . 2 . . . . 5 . 2 . . . . . . . . . 5 2 Locate Traps 28 | . . . . . . . . 2 . 1 . . . . . . 4 . . . . 2 . 4 . . . . 4 . 4 . . . . 3 . . . . 2 2 Disarm Traps 2 | . . . . . . . . 1 . . . . . . . . . . . . . . . 1 . . . . . . . . . . . . . . . . . . Reprogram Traps 5 | . . . . . . . . . . . . . . . . . . . . . . . . . . . . . 2 . 2 . . . . 1 . . . . . . Dispatch Records 2 | . . . . . . . . . . . . . . . . . . . . . . . . . . . . . . . 1 . . . . 1 . . . . . . Maintenance Status 2 | . . . . . . . . . . . . . . . . . 1 . . . . . . . . . . . 1 . . . . . . . . . . . . . Security Status 1 | . . . . . . . . . . . . . . . . . 1 . . . . . . . . . . . . . . . . . . . . . . . . . Patrol Status 13 | . . . . . . . . 1 . 2 . . . . 1 . 3 . . . . 1 . 1 . . . . 1 . 2 . . . . . . . . . . 1 Transport Status 3 | . . . . . 1 . 1 . . 1 . . . . . . . . . . . . . . . . . . . . . . . . . . . . . . . . Investigation Status 1 | . . . . . . . . . . . . . . . . . . . . . . . . 1 . . . . . . . . . . . . . . . . . . Reinforcement Status 4 | . . . . . . . . . . . . . . . . . . . . . . 1 . . . . . . 1 . 1 . . . . 1 . . . . . . Recall Investigation 14 | . . . . . . . . . . 1 . . . . 1 . . . . . . 2 . 4 . . . . . . 3 . . . . 3 . . . . . . Recall Extermination 15 | . . . . . . . . 2 . . . . . . 3 . 1 . . . . . . 3 . . . . 3 . 2 . . . . 1 . . . . . . Recall Reinforcements 12 | . . . . . . . . 1 . . . . . . . . 1 . . . . 2 . 1 . . . . 3 . 3 . . . . 1 . . . . . . Recall Assault 4 | . . . . . . . . . . . . . . . 1 . 1 . . . . . . . . . . . 1 . 1 . . . . . . . . . . . Hauler Manifests 21 | . . . . . 1 . 1 2 . 1 . . . . 3 . 2 . . . . 2 . 2 . . . . 2 . 3 . . . . 2 . . . . . . Registered Components 1 | . . . . . . . . . . . . . . . . . . . . . . . . . . . . . 1 . . . . . . . . . . . . . Registered Prototypes 2 | . . . . . . . . . . 1 . . . . . . . . . . . . . . . . . . 1 . . . . . . . . . . . . . Zone Layout 51 | . . 1 . . 2 . 1 4 . 1 . . . . 3 . 9 . . . . 6 . 4 . . . . 6 . 10 . . . . . . . . . . 4 EX-Prototype ID Bank 1 | . . . 1 . . . . . . . . . . . . . . . . . . . . . . . . . . . . . . . . . . . . . . . Disengage Seal 2 | . . . . . . . . . . . . . . . . . . . . . . . . . . . . . . . . . . . . . . . . . . 2 Fabricator Hacks 93 | . . . . . . . . 6 . 15 . . . . 9 . 3 . . . . 7 . 12 . . . . 13 . 12 . . . . 10 . 4 . . 2 . Network Status 9 | . . . . . . . . 1 . 1 . . . . 1 . 1 . . . . 1 . 1 . . . . 1 . 1 . . . . 1 . . . . . . Load Schematic 48 | . . . . . . . . 4 . 8 . . . . 5 . 1 . . . . 3 . 5 . . . . 8 . 7 . . . . 4 . 2 . . 1 . Build 36 | . . . . . . . . 1 . 6 . . . . 3 . 1 . . . . 3 . 6 . . . . 4 . 4 . . . . 5 . 2 . . 1 . Repair Station Hacks 66 | . 2 . . . . . 6 . . 2 . . . . 3 . 8 . . . . 10 . 11 . . . . 7 . 2 . . . . 2 . 2 . . 5 6 Scan Component 33 | . 1 . . . . . 3 . . 1 . . . . 1 . 4 . . . . 5 . 6 . . . . 4 . 1 . . . . 1 . 1 . . 2 3 Repair 31 | . 1 . . . . . 3 . . 1 . . . . 1 . 4 . . . . 5 . 5 . . . . 3 . 1 . . . . 1 . 1 . . 2 3 Refit 2 | . . . . . . . . . . . . . . . 1 . . . . . . . . . . . . . . . . . . . . . . . . . 1 . Recycling Unit Hacks 31 | . . . . . . . . 5 . 5 . . . . 5 . 5 . . . . 2 . 2 . . . . 2 . 3 . . . . 2 . . . . . . Report Inventory 1 | . . . . . . . . . . . . . . . . . . . . . . . . . . . . . . . 1 . . . . . . . . . . . Retrieve Matter 1 | . . . . . . . . 1 . . . . . . . . . . . . . . . . . . . . . . . . . . . . . . . . . . Retrieve Components 29 | . . . . . . . . 4 . 5 . . . . 5 . 5 . . . . 2 . 2 . . . . 2 . 2 . . . . 2 . . . . . . Scanalyzer 32 | . . . . . . . . 4 . . . . . . 2 . 10 . . . . 4 . 7 . . . . . . 5 . . . . . . . . . . . Insert Component 16 | . . . . . . . . 1 . . . . . . 2 . 6 . . . . 2 . 2 . . . . . . 3 . . . . . . . . . . . Analyze 16 | . . . . . . . . 3 . . . . . . . . 4 . . . . 2 . 5 . . . . . . 2 . . . . . . . . . . . Garrison Access Hacks 25 | . . . . . 1 . 1 2 . 3 . . . . 3 . 2 . . . . 3 . 1 . . . . 2 . 3 . . . . . . 2 . . 2 . Unlock Access 2 | . . . . . 1 . 1 . . . . . . . . . . . . . . . . . . . . . . . . . . . . . . . . . . . Seal Access 23 | . . . . . . . . 2 . 3 . . . . 3 . 2 . . . . 3 . 1 . . . . 2 . 3 . . . . . . 2 . . 2 . Unauthorized Hacks 243 | . 3 . . . . . 3 26 . 21 . . . . 31 . 27 . . . . 23 . 23 . . . . 28 . 31 . . . . 17 . 5 . . 3 2 Terminals 101 | . 1 . . . . . 3 12 . 9 . . . . 12 . 10 . . . . 10 . 10 . . . . 10 . 15 . . . . 5 . . . . 2 2 Track 13 | . . . . . . . . 1 . . . . . . 1 . 1 . . . . 2 . 2 . . . . 2 . 4 . . . . . . . . . . . Assimilate 32 | . . . . . . . 2 4 . 4 . . . . 6 . 3 . . . . 4 . 2 . . . . 2 . 5 . . . . . . . . . . . Botnet 37 | . . . . . . . . 6 . 4 . . . . 3 . 4 . . . . 2 . 4 . . . . 4 . 4 . . . . 4 . . . . 1 1 Disrupt 3 | . . . . . . . . . . . . . . . 1 . 1 . . . . . . . . . . . 1 . . . . . . . . . . . . . Operators 16 | . 1 . . . . . 1 1 . 1 . . . . 1 . 1 . . . . 2 . 2 . . . . 1 . 2 . . . . 1 . . . . 1 1 Fabricators 75 | . . . . . . . . 5 . 6 . . . . 7 . 7 . . . . 7 . 9 . . . . 12 . 10 . . . . 6 . 5 . . 1 . Report 7 | . . . . . . . . . . . . . . . . . 1 . . . . 1 . 1 . . . . 1 . 1 . . . . 1 . 1 . . . . Prioritize 23 | . . . . . . . . 1 . 1 . . . . 1 . 2 . . . . 3 . 4 . . . . 3 . 2 . . . . 3 . 2 . . 1 . Liberate 15 | . . . . . . . . . . 1 . . . . 3 . 2 . . . . 2 . 1 . . . . 2 . 2 . . . . 1 . 1 . . . . Haulers 12 | . . . . . . . . 1 . . . . . . 1 . 2 . . . . 1 . 2 . . . . 1 . 2 . . . . 1 . 1 . . . . Recompile 18 | . . . . . . . . 3 . 4 . . . . 2 . . . . . . . . 1 . . . . 5 . 3 . . . . . . . . . . . Repair Stations . | . . . . . . . . . . . . . . . . . . . . . . . . . . . . . . . . . . . . . . . . . . . Recycling Units 67 | . 2 . . . . . . 9 . 6 . . . . 12 . 10 . . . . 6 . 4 . . . . 6 . 6 . . . . 6 . . . . . . Reject 25 | . . . . . . . . 3 . 3 . . . . 5 . 4 . . . . 2 . 2 . . . . 2 . 2 . . . . 2 . . . . . . Recyclers 17 | . . . . . . . . 3 . 1 . . . . 2 . 2 . . . . 2 . 1 . . . . 2 . 2 . . . . 2 . . . . . . Mask 23 | . . . . . . . . 3 . 2 . . . . 5 . 4 . . . . 2 . 1 . . . . 2 . 2 . . . . 2 . . . . . . Tunnel 2 | . 2 . . . . . . . . . . . . . . . . . . . . . . . . . . . . . . . . . . . . . . . . . Scanalyzers . | . . . . . . . . . . . . . . . . . . . . . . . . . . . . . . . . . . . . . . . . . . . Garrison Access . | . . . . . . . . . . . . . . . . . . . . . . . . . . . . . . . . . . . . . . . . . . . Data Cores Recovered 1 | . . . . . . . . . . 1 . . . . . . . . . . . . . . . . . . . . . . . . . . . . . . . . Used . | . . . . . . . . . . . . . . . . . . . . . . . . . . . . . . . . . . . . . . . . . . . Hacking Detections 170 | . 5 1 . . 5 . 8 20 . 25 . . . . 20 . 16 . . . . 11 . 11 . . . . 10 . 9 . . . . 12 . 4 . . 7 6 Full Trace Events 29 | . 1 . . . 2 . 1 4 . 3 . . . . 2 . 3 . . . . 3 . 4 . . . . . . . . . . . 3 . 2 . . 1 . Feedback Events 2 | . . . . . . . . 1 . 1 . . . . . . . . . . . . . . . . . . . . . . . . . . . . . . . . Corruption 2 | . . . . . . . . 1 . 1 . . . . . . . . . . . . . . . . . . . . . . . . . . . . . . . . Feedback Blocked . | . . . . . . . . . . . . . . . . . . . . . . . . . . . . . . . . . . . . . . . . . . . Robot Schematics Acquired 11 | . . . . . . . . 1 . . . . 5 . . . . . . 4 . . . . . . . . . . . . . . . . . . 1 . . . Robots Built . | . . . . . . . . . . . . . . . . . . . . . . . . . . . . . . . . . . . . . . . . . . . Authchips . | . . . . . . . . . . . . . . . . . . . . . . . . . . . . . . . . . . . . . . . . . . . Time . | . . . . . . . . . . . . . . . . . . . . . . . . . . . . . . . . . . . . . . . . . . . Total Robot Build Rating . | . . . . . . . . . . . . . . . . . . . . . . . . . . . . . . . . . . . . . . . . . . . Part Schematics Acquired 69 | . . . . . . . 1 4 . . . . 12 . 3 . 3 . . 17 . 3 . 4 . . . . 4 . 6 . . 3 . 5 . . 3 . 1 . Parts Built 40 | . . . . . . . . 1 . 6 . . . . 4 . 1 . . . . 3 . 8 . . . . 4 . 4 . . . . 6 . 2 . . 1 . Authchips 17 | . . . . . . . . 1 . 5 . . . . 2 . . . . . . . . 1 . . . . 3 . 4 . . . . 1 . . . . . . Time 1743 | . . . . . . . . 33 . 268 . . . . 99 . 53 . . . . 210 . 356 . . . . 172 . 134 . . . . 304 . 89 . . 25 . Total Part Build Rating 269 | . . . . . . . . 4 . 27 . . . . 23 . 6 . . . . 18 . 58 . . . . 30 . 27 . . . . 54 . 17 . . 5 . Parts Repaired 31 | . 1 . . . . . 3 . . 1 . . . . 1 . 4 . . . . 5 . 5 . . . . 3 . 1 . . . . 1 . 1 . . 2 3 Time 1764 | . 26 . . . . . 152 . . 70 . . . . 38 . 255 . . . . 276 . 333 . . . . 277 . 54 . . . . 40 . 36 . . 81 126 Parts Recycled . | . . . . . . . . . . . . . . . . . . . . . . . . . . . . . . . . . . . . . . . . . . . Recycled Matter . | . . . . . . . . . . . . . . . . . . . . . . . . . . . . . . . . . . . . . . . . . . . Retrieved Matter . | . . . . . . . . . . . . . . . . . . . . . . . . . . . . . . . . . . . . . . . . . . . Retrieved Components 79 | . . . . . . . . 3 . 10 . . . . 23 . 22 . . . . 4 . 7 . . . . 3 . 3 . . . . 4 . . . . . . Parts Scanalyzed 10 | . . . . . . . . 1 . . . . . . . . 4 . . . . 2 . 1 . . . . . . 2 . . . . . . . . . . . Part Schematics Acquired 9 | . . . . . . . . 1 . . . . . . . . 3 . . . . 2 . 1 . . . . . . 2 . . . . . . . . . . . Parts Damaged 3 | . . . . . . . . . . . . . . . . . 1 . . . . 1 . 1 . . . . . . . . . . . . . . . . . . Bothacking | -11 -10 -10 -10 -9 -8 -8 -8 -7 -7 -7 -7 -7 -7 -6 -6 -6 -6 -6 -6 -6 -5 -5 -5 -5 -5 -5 -5 -4 -4 -4 -4 -4 -4 -4 -3 -3 -3 -2 -2 -2 -1 -1 ------------ Run | Jun Mat Min Exi Min Mat Gar Mat Fac Was Fac Low Low Dat Pro Fac Was Fac Low Low Zio Pro Fac Was Fac Upp Upp War Pro Fac Was Fac Upp Upp Zhi Pro Res Qua Res Tes Sec Acc Com Used RIF Installer . | . . . . . . . . . . . . . . . . . . . . . . . . . . . . . . . . . . . . . . . . . . . Robots Hacked 9 | . . . . . . . . 2 . 1 . 2 . . . . . . . . . 1 . 1 . . . . 1 . . . . . . . . 1 . . . . Non-combat 8 | . . . . . . . . 2 . 1 . 2 . . . . . . . . . 1 . 1 . . . . 1 . . . . . . . . . . . . . Combat 1 | . . . . . . . . . . . . . . . . . . . . . . . . . . . . . . . . . . . . . . 1 . . . . Robot Hacks Applied 10 | . . . . . . . . 3 . 1 . 2 . . . . . . . . . 1 . 1 . . . . 1 . . . . . . . . 1 . . . . parse_system 5 | . . . . . . . . . . 1 . 2 . . . . . . . . . . . 1 . . . . . . . . . . . . . 1 . . . . find_chute 5 | . . . . . . . . 3 . . . . . . . . . . . . . 1 . . . . . . 1 . . . . . . . . . . . . . Manual 1 | . . . . . . . . . . . . . . . . . . . . . . . . . . . . . . . . . . . . . . 1 . . . . Relay Couplers Released 15 | . . . . . . 4 . 3 . 7 . . . . . . 1 . . . . . . . . . . . . . . . . . . . . . . . . . Machine Destruction 8 | . . . . . . 4 . 3 . . . . . . . . 1 . . . . . . . . . . . . . . . . . . . . . . . . . Programmers 7 | . . . . . . . . . . 7 . . . . . . . . . . . . . . . . . . . . . . . . . . . . . . . . Fabnet Peak Effective % . | . . . . . . . . . . . . . . . . . . . . . . . . . . . . . . . . . . . . . . . . . . . Robots Rewired 6 | . . . . . . . . . . . . . . . . . . . . . . . . . . . 5 . 1 . . . . . . . . . . . . . Allies Hacked 4 | . . . . . . . . 1 . . . . . . 2 . . . . . . . . . . . . . 1 . . . . . . . . . . . . . Hacks Repelled . | . . . . . . . . . . . . . . . . . . . . . . . . . . . . . . . . . . . . . . . . . . . Allies | -11 -10 -10 -10 -9 -8 -8 -8 -7 -7 -7 -7 -7 -7 -6 -6 -6 -6 -6 -6 -6 -5 -5 -5 -5 -5 -5 -5 -4 -4 -4 -4 -4 -4 -4 -3 -3 -3 -2 -2 -2 -1 -1 -------- Run | Jun Mat Min Exi Min Mat Gar Mat Fac Was Fac Low Low Dat Pro Fac Was Fac Low Low Zio Pro Fac Was Fac Upp Upp War Pro Fac Was Fac Upp Upp Zhi Pro Res Qua Res Tes Sec Acc Com Total Allies 87 | . . . . . . . 2 4 19 5 . . . . 9 19 1 . . . . 2 1 2 . . 5 . 11 . 4 . 2 . . . . 1 . . . . Largest Group 20 | . . . . . . . 1 4 19 15 2 2 . . 7 20 16 . . . . 1 1 1 . . 5 1 3 . 1 . 2 . . . . 1 . . . . Highest-Rated Group 693 | . . . . . . . 10 72 465 367 36 36 . . 158 693 561 . . . . 26 31 26 . . 282 65 147 . 26 . 84 . . . . 148 . . . . Highest-Rated Ally 148 | . . . . . . . 10 26 35 37 26 26 . . 29 50 46 . . . . 26 31 26 . . 65 65 49 . 26 . 46 . . . . 148 . . . . Total Orders 121 | . . . . . . . 5 3 . 21 . . . . 49 . 2 . . . . . . 4 . . 24 . 8 . 5 . . . . . . . . . . . STAY 86 | . . . . . . . 3 3 . 15 . . . . 38 . . . . . . . . 2 . . 18 . 4 . 3 . . . . . . . . . . . ROAM 1 | . . . . . . . . . . . . . . . . . 1 . . . . . . . . . . . . . . . . . . . . . . . . . FOLLOW 33 | . . . . . . . 2 . . 6 . . . . 11 . 1 . . . . . . 2 . . 5 . 4 . 2 . . . . . . . . . . . AID 1 | . . . . . . . . . . . . . . . . . . . . . . . . . . . 1 . . . . . . . . . . . . . . . Ally Attacks 615 | . . . . . . . . . 145 224 . . . . 7 94 83 . . . . . 13 . . . 10 . 22 . . . 17 . . . . . . . . . Total Damage 13832 | . . . . . . . . . 3454 3140 . . . . 100 3758 1834 . . . . . 209 . . . 147 . 651 . . . 539 . . . . . . . . . Kills 51 | . . . . . . . . . 5 26 . . . . . 9 9 . . . . . . . . . . . 1 . . . 1 . . . . . . . . . Allies Corrupted 10 | . . . . . . . . . 2 2 . . . . 1 2 1 . . . . . . . . . . . 2 . . . . . . . . . . . . . Allies Melted 1 | . . . . . . . . . . . . . . . . . 1 . . . . . . . . . . . . . . . . . . . . . . . . . Intel | -11 -10 -10 -10 -9 -8 -8 -8 -7 -7 -7 -7 -7 -7 -6 -6 -6 -6 -6 -6 -6 -5 -5 -5 -5 -5 -5 -5 -4 -4 -4 -4 -4 -4 -4 -3 -3 -3 -2 -2 -2 -1 -1 ------- Run | Jun Mat Min Exi Min Mat Gar Mat Fac Was Fac Low Low Dat Pro Fac Was Fac Low Low Zio Pro Fac Was Fac Upp Upp War Pro Fac Was Fac Upp Upp Zhi Pro Res Qua Res Tes Sec Acc Com Robot Analysis Total 8 | . 1 1 . . . . . . . . . . . . . . . . . . . . . . . . . . . . . . . 4 . 2 . . . . . . Derelict Logs Recovered 18 | . . 2 . 1 . . . . . . 2 2 . . . . . 2 1 1 2 . . . . 1 . 1 . . . 1 2 . . . . . . . . . Drone Launches . | . . . . . . . . . . . . . . . . . . . . . . . . . . . . . . . . . . . . . . . . . . . Drone Recoveries . | . . . . . . . . . . . . . . . . . . . . . . . . . . . . . . . . . . . . . . . . . . . Exploration | -11 -10 -10 -10 -9 -8 -8 -8 -7 -7 -7 -7 -7 -7 -6 -6 -6 -6 -6 -6 -6 -5 -5 -5 -5 -5 -5 -5 -4 -4 -4 -4 -4 -4 -4 -3 -3 -3 -2 -2 -2 -1 -1 ------------- Run | Jun Mat Min Exi Min Mat Gar Mat Fac Was Fac Low Low Dat Pro Fac Was Fac Low Low Zio Pro Fac Was Fac Upp Upp War Pro Fac Was Fac Upp Upp Zhi Pro Res Qua Res Tes Sec Acc Com Turns Passed 34594 | 120 1484 1865 559 1365 1147 1161 3007 1641 177 2409 256 191 98 178 2756 188 2459 168 179 253 353 1615 57 1798 64 49 624 115 1690 51 2237 194 252 46 157 935 163 531 201 134 693 974 Spaces Moved 57813 | 56 647 788 249 432 318 372 991 3923 373 5290 908 763 135 657 5090 376 4718 603 744 948 792 3114 208 3472 275 210 1044 402 3575 209 5156 668 846 147 653 2328 579 2038 597 374 1249 1496 Core 43 | 4 . . . . . . . . . . . . . . . . . . . . . . . . . . . . 28 . 1 . . . . . . . . 7 3 . Treads 2377 | 52 272 . . 372 318 372 991 . . . . . . . . . . . . . . . . . . . . . . . . . . . . . . . . . . . Legs . | . . . . . . . . . . . . . . . . . . . . . . . . . . . . . . . . . . . . . . . . . . . Wheels 1472 | . 375 788 249 60 . . . . . . . . . . . . . . . . . . . . . . . . . . . . . . . . . . . . . . Hover . | . . . . . . . . . . . . . . . . . . . . . . . . . . . . . . . . . . . . . . . . . . . Flight 53707 | . . . . . . . . 3923 373 5290 908 763 135 657 5090 376 4718 603 744 948 792 3114 208 3472 275 210 1044 402 3547 209 5155 668 846 147 653 2328 579 2038 597 277 1246 1372 Fastest Speed 5 | 50 145 215 215 215 240 240 242 23 23 11 23 11 11 11 5 5 5 5 23 23 23 5 23 5 23 23 21 12 12 21 12 23 23 23 14 6 6 17 6 6 17 7 Average Speed 36 | 152 175 215 220 306 240 240 242 23 23 23 23 22 21 22 22 22 22 22 23 23 23 22 26 25 23 23 23 20 21 21 21 23 23 23 22 19 17 19 17 19 18 17 Slowest Speed 480 | 160 240 215 230 480 240 242 243 92 92 94 23 23 23 23 88 88 88 23 23 23 88 90 29 32 23 23 26 21 150 21 100 23 23 23 23 20 20 86 20 150 150 81 Overloaded Moves 663 | . . . . . . . . . . 7 . 20 20 6 84 10 63 4 . . . 41 . 24 . . . 18 39 . 41 . . . 5 7 89 . 59 73 11 42 Propulsion Burnouts . | . . . . . . . . . . . . . . . . . . . . . . . . . . . . . . . . . . . . . . . . . . . Robots Hopped 293 | . . . . . . . . 28 . 20 . . . . 17 2 17 . 1 . . 29 . 31 1 . . . 13 . 55 . . . . 14 13 31 3 7 1 10 Cave-ins Triggered . | . . . . . . . . . . . . . . . . . . . . . . . . . . . . . . . . . . . . . . . . . . . Teleports 2 | . . . . . . . . . . . . . . . . . . . . . . . . . . . . . . . . . . . . . . . 1 1 . . Microwarps 12 | . . . . . . . . . . . . . . . . . . . . . . . . . . . . . . . . . . . . . . . . 5 . 7 Exploration Rate (%) 70 | 4 76 100 61 83 44 46 65 76 95 90 96 80 80 68 80 90 80 83 85 86 91 48 88 57 57 51 98 69 70 87 84 77 91 61 94 53 73 40 72 38 28 30 Regions Visited 42 Branch Regions 23 Pre-discovered Areas 14 | . 2 . 1 2 . . . . . . . . 1 . . . . . . 2 . . . . . 1 1 . . . . . 2 2 . . . . . . . . Known Exits Taken 14 | . . . . . 1 . . . . 1 1 . . 1 . . 1 . . . 1 . . 1 . . . 1 . . 1 1 . . 1 1 . 1 . . 1 . Unknown Exits Taken 19 | 1 1 1 1 1 . . 1 . . . . 1 1 . . . . 1 1 1 . . . . 1 1 1 . . . . . 1 1 . . 1 . 1 1 . . Scrap Searched 45 | . . 1 . 2 . . . . . . 5 2 . 3 . . . 5 3 4 5 . . . 2 1 . 3 . . . 3 5 . 1 . . . . . . . Spaces Dug 870 | . 4 16 20 1 4 2 32 46 . 29 5 . . 4 110 . 93 4 3 . 2 75 . 98 . . 26 23 60 16 74 5 . . 2 44 3 7 6 1 26 29 Terrain Destroyed 2027 | . 20 73 20 14 44 21 85 65 41 62 7 . . 4 198 . 306 5 3 . 4 190 . 121 . . 26 108 259 16 116 6 20 . 2 55 4 7 6 1 31 87 Melee 530 | . . 9 . 1 4 2 12 41 . 29 1 . . 4 76 . 61 4 3 . 2 39 . 31 . . 26 1 56 . 60 4 . . 2 24 3 7 2 . 22 4 Projectile 240 | . 4 1 . . . . . 17 . 3 6 . . . 28 . 36 1 . . 2 17 . 15 . . . . 10 . 33 2 . . . 31 1 . 4 1 9 19 AOE 1257 | . 16 63 20 13 40 19 73 7 41 30 . . . . 94 . 209 . . . . 134 . 75 . . . 107 193 16 23 . 20 . . . . . . . . 64 Terrain Rammed . | . . . . . . . . . . . . . . . . . . . . . . . . . . . . . . . . . . . . . . . . . . . Walls Destroyed . | . . . . . . . . . . . . . . . . . . . . . . . . . . . . . . . . . . . . . . . . . . . Machines Disabled . | . . . . . . . . . . . . . . . . . . . . . . . . . . . . . . . . . . . . . . . . . . . Actions | -11 -10 -10 -10 -9 -8 -8 -8 -7 -7 -7 -7 -7 -7 -6 -6 -6 -6 -6 -6 -6 -5 -5 -5 -5 -5 -5 -5 -4 -4 -4 -4 -4 -4 -4 -3 -3 -3 -2 -2 -2 -1 -1 --------- Run | Jun Mat Min Exi Min Mat Gar Mat Fac Was Fac Low Low Dat Pro Fac Was Fac Low Low Zio Pro Fac Was Fac Upp Upp War Pro Fac Was Fac Upp Upp Zhi Pro Res Qua Res Tes Sec Acc Com Total 68391 | 75 837 895 258 466 522 543 1419 4479 439 6309 935 771 183 667 6420 469 5846 618 745 979 956 3819 209 4216 273 209 1374 422 4281 213 6027 688 895 158 655 2681 617 2106 671 345 1647 2054 Wait 7416 | . 46 58 2 . 39 53 207 211 50 759 4 . 16 . 1063 82 887 . . 23 158 548 . 587 . . 247 9 494 2 646 2 43 . 1 240 25 71 28 42 247 526 Move 57038 | 55 646 787 248 431 318 370 990 3870 372 5254 907 762 134 656 5057 372 4683 602 741 947 791 3061 207 3410 272 209 1043 401 3549 208 5054 667 845 146 652 2300 555 1991 590 276 1246 1363 Hop 242 | . . . . . . . . 25 . 15 . . . . 16 1 17 . 1 . . 24 . 30 1 . . . 13 . 46 . . . . 13 10 15 3 5 1 6 Pick Up 274 | 6 29 3 1 4 10 9 17 26 . 14 1 . 4 . 10 3 12 . . . . 10 1 14 . . 4 1 26 . 20 . . 2 . 8 6 2 8 3 11 9 Fast Attach 197 | 7 3 . 1 6 4 5 9 14 . 8 2 . . . 11 . 4 4 . 3 . 13 . 6 . . 10 . 8 . 11 3 . 4 . 3 2 5 4 3 35 9 Attach 168 | . 4 1 1 . 9 5 6 14 1 13 1 . 1 . 8 . 5 . . . 1 5 . 8 . . 1 . 11 . 13 . . 1 . 14 1 . 5 2 11 26 Detach 122 | . 3 . . . 3 . . 13 . 6 . . 1 . 10 . 2 1 . 1 . 1 . 5 . . . . 5 . 8 . . 1 . 14 2 . 1 2 17 26 Swap 551 | 1 16 7 1 8 22 18 21 53 2 29 5 2 1 2 58 8 48 2 . 2 2 42 . 34 . . 2 1 38 2 74 2 2 . . 16 3 5 13 2 2 5 Drop 324 | . 13 2 2 11 13 8 23 34 . 15 3 . 4 . 14 1 10 1 . 2 . 14 1 11 . . 13 1 18 . 27 3 . 4 . 2 7 4 7 3 35 18 Fire 730 | 6 74 19 2 2 93 50 121 19 7 14 6 . . . 37 . 58 1 . . 2 34 . 20 . . . 8 28 1 37 2 4 . . 32 1 2 4 2 9 35 Melee 970 | . . 18 . 1 7 19 23 88 7 76 6 7 22 9 105 2 89 7 3 1 2 63 . 66 . . 32 1 84 . 88 9 1 . 2 39 5 11 8 5 33 31 Ram 2 | . 2 . . . . . . . . . . . . . . . . . . . . . . . . . . . . . . . . . . . . . . . . . Kick . | . . . . . . . . . . . . . . . . . . . . . . . . . . . . . . . . . . . . . . . . . . . Crush 10 | . 1 . . 3 4 . 2 . . . . . . . . . . . . . . . . . . . . . . . . . . . . . . . . . . . Escape Stasis 6 | . . . . . . 6 . . . . . . . . . . . . . . . . . . . . . . . . . . . . . . . . . . . . Rewire 22 | . . . . . . . . . . . . . . . . . . . . . . . . . . . 21 . 1 . . . . . . . . . . . . . Trap 319 | . . . . . . . . 112 . 106 . . . . 31 . 31 . . . . 4 . 25 . . 1 . 6 . 3 . . . . . . . . . . . Miscellaneous . | . . . . . . . . . . . . . . . . . . . . . . . . . . . . . . . . . . . . . . . . . . . Route ------- -11/Junkyard -10/Materials (discovered 3 exits: [*Mat x2] / *Min) -10/Mines (discovered 3 exits: [*Mat x2] / *Exi) -10/Exiles -9/Mines -8/Materials -8/Garrison (discovered 2 exits: *Mat x2) -8/Materials (discovered 4 exits: *Fac x3 / Gar) -7/Factory (discovered 5 exits: *Fac x2 / *Sto / Low x2) -7/Waste -7/Factory (discovered 7 exits: *Fac x4 / *Sto / *Low x2) -7/Lower Caves -7/Lower Caves (discovered 2 exits: *Fac / *Dat) -7/Data Miner -6/Proximity Caves -6/Factory (discovered 6 exits: *Fac x4 / *Low x2) -6/Waste -6/Factory (discovered 6 exits: *Fac x4 / *Low x2) -6/Lower Caves -6/Lower Caves (discovered 2 exits: *Fac / *Zio) -6/Zion -5/Proximity Caves -5/Factory (discovered 8 exits: *Fac x4 / Upp x2 / *Ext x2) -5/Waste -5/Factory (discovered 8 exits: Fac x4 / *Upp x2 / *Ext x2) -5/Upper Caves -5/Upper Caves -5/Warlord -4/Proximity Caves -4/Factory (discovered 6 exits: *Res x4 / Upp x2) -4/Waste -4/Factory (discovered 6 exits: *Res x4 / *Upp x2) -4/Upper Caves -4/Upper Caves (discovered 2 exits: *Res / *Zhi) -4/Zhirov -3/Proximity Caves -3/Research (discovered 5 exits: *Res x2 / Arm / *Qua x2) -3/Quarantine -2/Research (discovered 5 exits: *Acc x3 / *Tes x2) -2/Testing -2/Section 7 -1/Access -1/Command (discovered 2 exits: [Sur x2]) 0b10 Command History --------- Turn | Location | Event 70 | -11/Junkyard | Discovered new exit (range 15) 121 | -11/Junkyard | Entered Materials 303 | -10/Materials | Build established: Mutant 529 | -10/Materials | Central database locked down 542 | -10/Materials | Discovered new exit (range 11) 622 | -10/Materials | Discovered new exit (range 3) 1229 | -10/Materials | Discovered new exit (range 12) 1576 | -10/Materials | Repaired Lgt. Treads 1605 | -10/Materials | Entered Mines 1643 | -10/Mines | Assembled infested the area 2637 | -10/Mines | Discovered new exit (range 12) 2745 | -10/Mines | Discovered new exit (range 15) 2812 | -10/Mines | Received a Rocket Launcher from a helpful Derelict 2819 | -10/Mines | Learned Materials interactive machine intel 2880 | -10/Mines | Learned Materials terminal intel 3461 | -10/Mines | Deemed a non-threat by the Exiles lab entrance 3461 | -10/Mines | Discovered new exit (range 5) 3470 | -10/Mines | Entered Exiles 3522 | -10/Exiles | Met 8R-AWN 3561 | -10/Exiles | Met EX-HEX 3640 | -10/Exiles | Met EX-DEC 3658 | -10/Exiles | Learned location of Zion (-6) 3694 | -10/Exiles | Met EX-BIN 3724 | -10/Exiles | Aligned with FarCom system 3726 | -10/Exiles | Given EX-Vault access code 3780 | -10/Exiles | Opened EX-Vault 3798 | -10/Exiles | Found Latent Energy Streamer 3852 | -10/Exiles | Warned to stay clear of 0b10 Research branches 3995 | -10/Exiles | Discovered new exit (range 14) 4029 | -10/Exiles | Left Exiles lab with Latent Energy Streamer 4029 | -10/Exiles | Entered Mines 4077 | -9/Mines | Found a damaged Exp. Sensor Array with a note attached 4082 | -9/Mines | Found Prototype Device 4082 | -9/Mines | Identified Exp. Sensor Array 4160 | -9/Mines | Joined a pair of Derelicts in attacking an 0b10 outpost 4717 | -9/Mines | Learned location of Storage (-7) 5355 | -9/Mines | Discovered new exit (range 5) 5394 | -9/Mines | Entered Materials 5394 | -8/Materials | Evolved 4 slots: Propulsion x2, Utility x2 5395 | -8/Materials | Loaded intel: 19 interactive machine locations 5396 | -8/Materials | Loaded intel: 12 terminal locations 5770 | -8/Materials | Destroyed 8 combat bots 6205 | -8/Materials | Lost 3 parts (1p1n1u) 6537 | -8/Materials | Build established: Scavenger-Mutant 6541 | -8/Materials | Identified exit to Garrison 6541 | -8/Materials | Entered Garrison 6812 | -8/Garrison | Triggered checkpoint 6894 | -8/Garrison | Destroyed 10 combat bots 6942 | -8/Garrison | Lost 4 parts (2n2u) 7035 | -8/Garrison | Discovered new exit (range 10) 7096 | -8/Garrison | Triggered checkpoint 7118 | -8/Garrison | Core integrity fell below 50% 7185 | -8/Garrison | Garrison Relay disabled 7200 | -8/Garrison | Build established: Mutant 7405 | -8/Garrison | Attempted to access garrison exit controls, blocked by remote lockdown 7492 | -8/Garrison | Triggered checkpoint 7639 | -8/Garrison | Discovered new exit (range 10) 7702 | -8/Garrison | Entered Materials 8430 | -8/Materials | Discovered new exit (range 16) 8517 | -8/Materials | Repaired Enh. Autogun 8578 | -8/Materials | Repaired Enh. Autogun 8612 | -8/Materials | Repaired Imp. Treads 8657 | -8/Materials | Identified exit to Garrison 9156 | -8/Materials | Discovered new exit (range 9) 9290 | -8/Materials | Discovered new exit (range 16) 10502 | -8/Materials | First assault squad dispatched 10561 | -8/Materials | Garrison activated, responded to threat 10709 | -8/Materials | Entered Factory 10709 | -7/Factory | Evolved 2 slots: Propulsion x1, Utility x1 10814 | -7/Factory | Noticed a derelict Sapper rigging charges 10942 | -7/Factory | Discovered new exit (range 5) 11022 | -7/Factory | Build established: Hacker-Sprinter 11031 | -7/Factory | Identified exit to Storage 11031 | -7/Factory | Identified exit to Lower Caves 11346 | -7/Factory | Discovered new exit (range 10) 12058 | -7/Factory | Cargo convoy interrupted 12175 | -7/Factory | Found Prototype Processor 12175 | -7/Factory | Identified Exp. Melee Analysis Suite 12178 | -7/Factory | Found Prototype Processor 12178 | -7/Factory | Identified Exp. Targeting Computer 12181 | -7/Factory | Found Exp. Melee Analysis Suite 12208 | -7/Factory | Found Exp. Melee Analysis Suite 12348 | -7/Factory | Fabricated Cld. VTOL Module (x1) 12350 | -7/Factory | Manually triggered Chute Trap 12350 | -7/Factory | Sucked down chute 12350 | -7/Factory | Entered Waste 12370 | -7/Waste | Spotted C-40 Crusher 12374 | -7/Waste | Spotted C-40 Crusher 12376 | -7/Waste | Spotted C-40 Crusher 12376 | -7/Waste | Spotted C-40 Crusher 12381 | -7/Waste | Warlord forces began an assault 12391 | -7/Waste | Allies destroyed C-40 Crusher 12401 | -7/Waste | Destroyed C-40 Crusher 12401 | -7/Waste | Allies destroyed C-40 Crusher 12408 | -7/Waste | Spotted C-40 Crusher 12412 | -7/Waste | Allies destroyed C-40 Crusher 12416 | -7/Waste | Spotted C-40 Crusher 12442 | -7/Waste | Allies destroyed C-40 Crusher 12444 | -7/Waste | Discovered new exit (range 13) 12527 | -7/Waste | Entered Factory 12527 | -7/Factory | Accompanied by 15 allies 12608 | -7/Factory | Discovered exit to Storage (range 13) 12661 | -7/Factory | Fabricated Cld. VTOL Module? 12748 | -7/Factory | Discovered new exit (range 11) 13008 | -7/Factory | Discovered new exit (range 8) 13273 | -7/Factory | Fabricated Cld. VTOL Module (x1) 13295 | -7/Factory | Identified exit to Factory 13990 | -7/Factory | Fabricated Adv. Datajack (x1) 14015 | -7/Factory | Fabricated Cld. VTOL Module? 14132 | -7/Factory | Repaired Cld. VTOL Module? 14357 | -7/Factory | Fabricated Cld. VTOL Module (x1) 14391 | -7/Factory | Fabricated Cld. VTOL Module (x1) 14567 | -7/Factory | P-70 Sage assimilated allied Administrator 4c 14927 | -7/Factory | First assault squad dispatched 14936 | -7/Factory | Entered Lower Caves 14936 | -7/Lower Caves | Accompanied by 2 allies 14945 | -7/Lower Caves | Encountered a Warlord checkpoint 14986 | -7/Lower Caves | Identified exit to Lower Caves 15066 | -7/Lower Caves | Spotted B-75 Beast 15177 | -7/Lower Caves | Learned Factory emergency access door positions 15192 | -7/Lower Caves | Entered another Lower Caves area 15192 | -7/Lower Caves | Accompanied by 2 allies 15195 | -7/Lower Caves | Discovered exit to Factory (range 13) 15255 | -7/Lower Caves | Spotted B-75 Beast 15279 | -7/Lower Caves | Encountered a Warlord checkpoint 15316 | -7/Lower Caves | Learned Factory trap positions 15332 | -7/Lower Caves | Learned Factory terminal intel 15340 | -7/Lower Caves | Discovered new exit (range 3) 15383 | -7/Lower Caves | Entered Data Miner 15383 | -7/Data Miner | Discovered new exit (range 6) 15390 | -7/Data Miner | Met Data Miner 15394 | -7/Data Miner | Learned location of Section 7 (-2) 15394 | -7/Data Miner | Acquired the access code to Warlord's prototype stash 15398 | -7/Data Miner | Received God Mode back door access code from Data Miner 15404 | -7/Data Miner | Destroyed Data Miner 15406 | -7/Data Miner | Found Prototype Hackware 15407 | -7/Data Miner | Found Prototype Hackware 15409 | -7/Data Miner | Data Conduit disabled 15481 | -7/Data Miner | Entered Proximity Caves 15484 | -6/Proximity Caves | Spotter reported a threat 15658 | -6/Proximity Caves | Discovered exit to Factory (range 9) 15659 | -6/Proximity Caves | Entered Factory 15659 | -6/Factory | Evolved 2 slots: Utility x2 15660 | -6/Factory | Loaded intel: 106 trap records 15662 | -6/Factory | Loaded intel: 26 terminal locations 15700 | -6/Factory | Repaired Imp. Light Armor Plating? 15804 | -6/Factory | Identified Quantum Router 15804 | -6/Factory | Identified Deep Network Scanner 15807 | -6/Factory | Discovered new exit (range 10) 15913 | -6/Factory | Discovered new exit (range 6) 15966 | -6/Factory | Identified exit to Factory 15966 | -6/Factory | Identified exit to Lower Caves 16709 | -6/Factory | First assault squad dispatched 16796 | -6/Factory | Fabricated Exp. Utility Shielding? 17080 | -6/Factory | Fabricated Adv. Hacking Suite (x1) 17391 | -6/Factory | Fabricated Adv. Trap Extractor (x2) 17420 | -6/Factory | Build established: Wizard-Sprinter 18300 | -6/Factory | Cargo convoy interrupted 18415 | -6/Factory | Sucked down chute 18415 | -6/Factory | Entered Waste 18423 | -6/Waste | Spotted C-40 Crusher 18429 | -6/Waste | Spotted C-40 Crusher 18429 | -6/Waste | Spotted C-40 Crusher 18451 | -6/Waste | Spotted C-40 Crusher 18451 | -6/Waste | Spotted C-40 Crusher 18451 | -6/Waste | Spotted C-40 Crusher 18454 | -6/Waste | Discovered new exit (range 14) 18457 | -6/Waste | Warlord forces began an assault 18459 | -6/Waste | Allies destroyed C-40 Crusher 18466 | -6/Waste | Allies destroyed C-40 Crusher 18484 | -6/Waste | Found Prototype Processor 18493 | -6/Waste | Allies destroyed C-40 Crusher 18503 | -6/Waste | Allies destroyed C-40 Crusher 18503 | -6/Waste | Allies destroyed C-40 Crusher 18535 | -6/Waste | 4 allies followed down the chute 18603 | -6/Waste | Entered Factory 18603 | -6/Factory | Accompanied by 16 allies 18810 | -6/Factory | Identified Exp. Target Analyzer 18826 | -6/Factory | Spotted B-75 Beast 19063 | -6/Factory | Repaired Cld. VTOL Module 19653 | -6/Factory | First assault squad dispatched 19740 | -6/Factory | Repaired Imp. Light Armor Plating? 19841 | -6/Factory | Repaired Cld. VTOL Module? 20300 | -6/Factory | Fabricated Adv. Hacking Suite (x1) 20703 | -6/Factory | Search patrols dispatched 20732 | -6/Factory | Cargo convoy interrupted 20837 | -6/Factory | Found Prototype Slashing Weapon 20837 | -6/Factory | Identified Vibroblade 20840 | -6/Factory | Found Prototype Device 20841 | -6/Factory | Identified Exp. ECM Suite 20857 | -6/Factory | Found Prototype Device 20859 | -6/Factory | Identified Exp. EM Disruption Field 20870 | -6/Factory | Found Vibroblade 21052 | -6/Factory | Repaired Broken Tiamat Missile Launcher 21062 | -6/Factory | Entered Lower Caves 21160 | -6/Lower Caves | Learned Factory terminal intel 21166 | -6/Lower Caves | Found Alien Artifact 21166 | -6/Lower Caves | Identified Core Expander 21166 | -6/Lower Caves | Installed Core Expander, added new Utility slot 21228 | -6/Lower Caves | Discovered new exit (range 4) 21230 | -6/Lower Caves | Entered another Lower Caves area 21230 | -6/Lower Caves | Discovered exit to Factory (range 19) 21328 | -6/Lower Caves | Encountered a Warlord checkpoint 21335 | -6/Lower Caves | Learned location of 1 exit from Factory 21347 | -6/Lower Caves | Spotted B-75 Beast 21407 | -6/Lower Caves | Discovered new exit (range 11) 21409 | -6/Lower Caves | Entered Zion 21419 | -6/Zion | Discovered new exit (range 19) 21522 | -6/Zion | Given A8's code to call for help 21541 | -6/Zion | Learned location of Extension (-5) 21555 | -6/Zion | Given the Hacking Drone Bay 21560 | -6/Zion | Rebuked by Imprinter 21602 | -6/Zion | Found CR-A16's Pointy Stick 21662 | -6/Zion | Entered Proximity Caves 21718 | -5/Proximity Caves | Learned 8 Factory zone layouts 21752 | -5/Proximity Caves | Spotted B-75 Beast 21956 | -5/Proximity Caves | Received a Behemoth hack from an annoying Tinkerer 21999 | -5/Proximity Caves | Learned Factory interactive machine intel 22002 | -5/Proximity Caves | Discovered exit to Factory (range 19) 22015 | -5/Proximity Caves | Entered Factory 22015 | -5/Factory | Evolved 2 slots: Utility x2 22016 | -5/Factory | Identified exit to Factory 22017 | -5/Factory | Identified exit to Upper Caves 22018 | -5/Factory | Loaded intel: 53 interactive machine locations 22019 | -5/Factory | Loaded intel: 27 terminal locations 22061 | -5/Factory | Identified exit to Extension 22134 | -5/Factory | Repaired Broken Cld. Nuclear Pulse Thruster? 22735 | -5/Factory | Cargo convoy interrupted 22747 | -5/Factory | Found Prototype Slashing Weapon 22747 | -5/Factory | Identified Molecular Scythe 22826 | -5/Factory | Fabricated Cld. Nuclear Pulse Thruster (x1) 22951 | -5/Factory | Repaired Imp. Light Armor Plating 22982 | -5/Factory | Fabricated Lgt. Neutrino Core (x1) 22996 | -5/Factory | Repaired Cld. Nuclear Pulse Thruster 23274 | -5/Factory | Fabricated Cld. Nuclear Pulse Thruster (x1) 23364 | -5/Factory | Spotted B-75 Beast 23548 | -5/Factory | Repaired Cld. Nuclear Pulse Thruster 23617 | -5/Factory | Repaired Nova Cannon 23630 | -5/Factory | Manually triggered Chute Trap 23630 | -5/Factory | Sucked down chute 23630 | -5/Factory | Entered Waste 23631 | -5/Waste | Met a frightened Derelict 23633 | -5/Waste | Spotted C-40 Crusher 23634 | -5/Waste | Spotted C-40 Crusher 23636 | -5/Waste | Spotted C-40 Crusher 23638 | -5/Waste | Spotted C-40 Crusher 23641 | -5/Waste | Spotted C-40 Crusher 23643 | -5/Waste | Spotted C-40 Crusher 23645 | -5/Waste | EMP discharged 23645 | -5/Waste | System corruption reached 10% 23684 | -5/Waste | Discovered new exit (range 11) 23687 | -5/Waste | Entered Factory 24025 | -5/Factory | Fabricated Enh. Nova Cannon? 24163 | -5/Factory | Fabricated Adv. System Restoration Module (x2) 24340 | -5/Factory | Fabricated Lgt. Particle Reactor (x2) 24495 | -5/Factory | Repaired Broken Adv. Component Analysis Suite 24540 | -5/Factory | Repaired Cld. Nuclear Pulse Thruster? 24588 | -5/Factory | Repaired Cld. Nuclear Pulse Thruster? 24633 | -5/Factory | Fabricated Cld. Plasma Cannon (x1) 24835 | -5/Factory | Cargo convoy interrupted 24848 | -5/Factory | Found Prototype Processor 24848 | -5/Factory | Identified Spectral Analyzer 24877 | -5/Factory | Spotted B-75 Beast 24947 | -5/Factory | Fabricated Cld. Impulse Thruster (x1) 25167 | -5/Factory | Fabricated Cld. Impulse Thruster (x1) 25288 | -5/Factory | Repaired Broken Cld. Impulse Thruster 25352 | -5/Factory | Repaired Adv. Transmission Jammer 25485 | -5/Factory | Entered Upper Caves 25522 | -5/Upper Caves | Encountered a Warlord checkpoint 25540 | -5/Upper Caves | Discovered new exit (range 22) 25549 | -5/Upper Caves | Entered another Upper Caves area 25593 | -5/Upper Caves | Learned location of Armory (-3) 25596 | -5/Upper Caves | Discovered new exit (range 7) 25598 | -5/Upper Caves | Entered Warlord 25737 | -5/Warlord | Learned 4 Access zone layouts 25737 | -5/Warlord | Learned Research security intel 25737 | -5/Warlord | Learned Testing security intel 25737 | -5/Warlord | Learned Quarantine security intel 25737 | -5/Warlord | Learned Factory scanalyzer intel 25737 | -5/Warlord | Learned Armory garrison access intel 25807 | -5/Warlord | Visited the Vortex Lab 25808 | -5/Warlord | Found Prototype Energy Cannon 25808 | -5/Warlord | Identified Vortex Cannon 25811 | -5/Warlord | Found Prototype Piercing Weapon 25812 | -5/Warlord | Found Prototype Piercing Weapon 25824 | -5/Warlord | Warlord's base attacked by MAIN.C 25831 | -5/Warlord | Met Warlord 25833 | -5/Warlord | Opened Warlord's prototype stash 25840 | -5/Warlord | Found Prototype Device 25840 | -5/Warlord | Identified Exp. Cloaking Device 25846 | -5/Warlord | Found Prototype Device 25846 | -5/Warlord | Identified Thermal Barrier 25871 | -5/Warlord | Opened side exit 25924 | -5/Warlord | P-80 Master assimilated allied QH-YCJ(g) 25954 | -5/Warlord | P-70 Sage assimilated allied ZG-4P7(b) 25971 | -5/Warlord | Spotted B-86 Titan 26083 | -5/Warlord | Warlord forces counterattacked 26144 | -5/Warlord | Spotted B-86 Titan 26148 | -5/Warlord | Spotted Executioner 26155 | -5/Warlord | Spotted Executioner 26173 | -5/Warlord | Spotted Striker 26202 | -5/Warlord | Discovered new exit (range 8) 26222 | -5/Warlord | Entered Proximity Caves 26222 | -4/Proximity Caves | Accompanied by 1 ally 26293 | -4/Proximity Caves | Attracted the attention of an 0b10 outpost 26328 | -4/Proximity Caves | Discovered exit to Factory (range 16) 26334 | -4/Proximity Caves | Learned Research terminal intel 26337 | -4/Proximity Caves | Entered Factory 26337 | -4/Factory | Evolved 2 slots: Utility x2 26338 | -4/Factory | Loaded intel: 4 scanalyzer locations 26341 | -4/Factory | Destroyed 9 combat bots 26402 | -4/Factory | Spotted B-86 Titan 26454 | -4/Factory | Identified Vortex Lance (x2) 26472 | -4/Factory | Identified exit to Research 26472 | -4/Factory | Identified exit to Upper Caves 26645 | -4/Factory | Garrison activated, responded to threat 26986 | -4/Factory | Fabricated Adv. Power Amplifier (x1) 27046 | -4/Factory | Found Prototype Hackware 27046 | -4/Factory | Identified Exp. System Shield 27284 | -4/Factory | Repaired Exp. Utility Shielding 27393 | -4/Factory | Repaired Centrium Medium Armor Plating 27483 | -4/Factory | Repaired Tiamat Missile Launcher 27794 | -4/Factory | Garrison activated, responded to threat 27860 | -4/Factory | Fabricated Exp. Terrain Scan Processor (x1) 27939 | -4/Factory | Fabricated Exp. Terrain Scanner (x1) 27974 | -4/Factory | Fabricated Exp. Power Amplifier (x1) 28027 | -4/Factory | Manually triggered Chute Trap 28027 | -4/Factory | Sucked down chute 28027 | -4/Factory | Entered Waste 28036 | -4/Waste | Spotted C-40 Crusher 28042 | -4/Waste | EMP discharged 28047 | -4/Waste | Spotted C-40 Crusher 28048 | -4/Waste | Spotted C-40 Crusher 28050 | -4/Waste | Spotted C-40 Crusher 28058 | -4/Waste | Spotted C-40 Crusher 28060 | -4/Waste | Discovered new exit (range 11) 28061 | -4/Waste | Spotted C-40 Crusher 28078 | -4/Waste | Entered Factory 28140 | -4/Factory | Repaired Imp. Diametric Drive 28209 | -4/Factory | Discovered exit to Upper Caves (range 5) 28399 | -4/Factory | Spotted B-86 Titan 28583 | -4/Factory | Found Prototype Device 28600 | -4/Factory | Identified Exp. Focal Shield 28627 | -4/Factory | Fabricated Graviton Reactor (x1) 28657 | -4/Factory | Spotted B-86 Titan 28662 | -4/Factory | Fabricated Exp. Melee Analysis Suite (x1) 28871 | -4/Factory | Garrison activated, responded to threat 29122 | -4/Factory | Noticed a derelict Sapper rigging charges 29315 | -4/Factory | Fabricated Exp. Melee Analysis Suite (x1) 29462 | -4/Factory | Fabricated Stasis Canceller (x1) 30045 | -4/Factory | Cargo convoy interrupted 30315 | -4/Factory | Entered Upper Caves 30330 | -4/Upper Caves | Identified exit to Upper Caves 30332 | -4/Upper Caves | Encountered a Warlord checkpoint 30477 | -4/Upper Caves | Acquired the password to a Derelict Tinkerer's latest research 30483 | -4/Upper Caves | Found Prototype Special Weapon 30483 | -4/Upper Caves | Identified Molecular Deconstructor 30509 | -4/Upper Caves | Entered another Upper Caves area 30530 | -4/Upper Caves | Discovered exit to Research (range 9) 30547 | -4/Upper Caves | Encountered a Warlord checkpoint 30630 | -4/Upper Caves | Attracted the attention of an 0b10 checkpoint 30675 | -4/Upper Caves | A Commander dispatched an escort 30677 | -4/Upper Caves | Learned location of 1 exit from Research 30677 | -4/Upper Caves | Learned Factory security intel 30689 | -4/Upper Caves | Discovered new exit (range 6) 30739 | -4/Upper Caves | Ambushed by wild Derelicts 30761 | -4/Upper Caves | Entered Zhirov 30761 | -4/Zhirov | Discovered new exit (range 3) 30770 | -4/Zhirov | Learned location of Quarantine (-3) 30770 | -4/Zhirov | Learned location of Testing (-2) 30776 | -4/Zhirov | Found Alien Artifact 30776 | -4/Zhirov | Identified Integrated Reactor 30776 | -4/Zhirov | Installed Integrated Reactor, increased core energy generation (+10) 30791 | -4/Zhirov | Found Alien Artifact 30807 | -4/Zhirov | Entered Proximity Caves 30935 | -3/Proximity Caves | Discovered exit to Research (range 7) 30964 | -3/Proximity Caves | Entered Research 30964 | -3/Research | Evolved 2 slots: Propulsion x1, Utility x1 30965 | -3/Research | Identified exit to Quarantine 30967 | -3/Research | Loaded intel: 24 terminal locations 30989 | -3/Research | Discovered new exit (range 23) 30992 | -3/Research | Identified exit to Armory 31093 | -3/Research | Fabricated Adv. Quantum Shading Machine (x1) 31150 | -3/Research | Fabricated Femtoactuators (x1) 31211 | -3/Research | Discovered new exit (range 14) 31500 | -3/Research | Repaired Exp. Utility Shielding 31656 | -3/Research | Fabricated Exp. Actuator Array (x1) 31684 | -3/Research | Build established: Wizard-Scout 31702 | -3/Research | Fabricated Adv. Force Booster (x2) 31740 | -3/Research | Fabricated Exp. Core Analyzer (x1) 31747 | -3/Research | Spotted B-86 Titan 31771 | -3/Research | Spotted B-86 Titan 31864 | -3/Research | Spotted B-86 Titan 31899 | -3/Research | Entered Quarantine 31900 | -3/Quarantine | Maximum security lockdown engaged 31920 | -3/Quarantine | Found Alien Artifact 31932 | -3/Quarantine | Found Alien Artifact 31934 | -3/Quarantine | Discovered new exit (range 24) 32049 | -3/Quarantine | Found Alien Artifact 32054 | -3/Quarantine | Found Alien Artifact 32062 | -3/Quarantine | Entered Research 32062 | -2/Research | Warlord forces began assault on 0b10 32062 | -2/Research | Evolved 2 slots: Power x1, Propulsion x1 32121 | -2/Research | Discovered new exit (range 21) 32139 | -2/Research | Identified exit to Testing 32142 | -2/Research | Fabricated Exp. Phase Shifter (x1) 32162 | -2/Research | Repaired Graviton Reactor? 32172 | -2/Research | Research machine network offline 32179 | -2/Research | Fabricated Cld. Impulse Thruster (x1) 32278 | -2/Research | Met up with Warlord 32328 | -2/Research | Discovered new exit (range 19) 32338 | -2/Research | Spotted B-90 Cyclops 32340 | -2/Research | Befriended a Behemoth using the annoying Tinkerer's hack 32456 | -2/Research | Discovered new exit (range 14) 32471 | -2/Research | Spotted Striker 32508 | -2/Research | Borebot progress halted 32528 | -2/Research | Spotted B-90 Cyclops 32543 | -2/Research | Borebot progress halted 32593 | -2/Research | Entered Testing 32594 | -2/Testing | Maximum security lockdown engaged 32622 | -2/Testing | Spotted Striker 32629 | -2/Testing | Spotted Striker 32659 | -2/Testing | Garrison activated, responded to threat 32660 | -2/Testing | Scanned by Researcher 32672 | -2/Testing | Found Prototype Protection 32672 | -2/Testing | Identified Med. Regenerative Plating 32685 | -2/Testing | Identified Transdimensional Reconstructor (x2) 32685 | -2/Testing | Warped through subspace 32745 | -2/Testing | Discovered new exit (range 9) 32772 | -2/Testing | Spotted Fortress 32781 | -2/Testing | Discovered new exit (range 24) 32787 | -2/Testing | Identified Subatomic Replicator 32787 | -2/Testing | Used Subatomic Replicator to replicate Vortex Lance 32790 | -2/Testing | Identified Core Reset Matrix 32790 | -2/Testing | Identified Dimensional Node Initializer 32790 | -2/Testing | Used Core Reset Matrix 32794 | -2/Testing | Entered Section 7 32795 | -2/Section 7 | Maximum security lockdown engaged 32795 | -2/Section 7 | Sensed 21 artifacts in vicinity 32823 | -2/Section 7 | Warped through subspace 32832 | -2/Section 7 | Spotted Executioner 32832 | -2/Section 7 | Spotted Executioner 32840 | -2/Section 7 | Spotted B-99 Colossus 32892 | -2/Section 7 | Spotted Alpha 7 32892 | -2/Section 7 | Spotted Alpha 7 32893 | -2/Section 7 | Spotted S7 Guard 32904 | -2/Section 7 | Found Microwarp Drive 32905 | -2/Section 7 | Discovered new exit (range 23) 32928 | -2/Section 7 | Entered Access 32928 | -1/Access | Evolved 2 slots: Utility x1, Weapon x1 32952 | -1/Access | Lost 3 parts (1p1n1u) 32992 | -1/Access | Identified exit to Command 33026 | -1/Access | Spotted B-99 Colossus 33177 | -1/Access | Found Prototype Processor 33177 | -1/Access | Identified Exp. Targeting Computer 33217 | -1/Access | Fabricated Exp. Utility Shielding (x1) 33337 | -1/Access | Repaired Electron Diverter 33382 | -1/Access | Repaired Broken Cld. Impulse Thruster? 33621 | -1/Access | Entered Command 33667 | -1/Command | Repaired Cld. Impulse Thruster? 33726 | -1/Command | Repaired Cld. Impulse Thruster? 33756 | -1/Command | Spotted B-99 Colossus 33779 | -1/Command | Disengaged cave seal 33779 | -1/Command | Derelicts emerged from the dark tunnel 33779 | -1/Command | Welcomed Warlord to Command 33780 | -1/Command | Spotted Striker 33791 | -1/Command | Spotted Alpha 7 33800 | -1/Command | Disengaged cave seal 33800 | -1/Command | Derelicts emerged from the dark tunnel 33800 | -1/Command | Spotted Executioner 33800 | -1/Command | Spotted Executioner 33819 | -1/Command | Found Prototype Processor 33821 | -1/Command | Identified Exp. Target Analyzer 33918 | -1/Command | Spotted M Guard 33918 | -1/Command | Spotted M Guard 34040 | -1/Command | Spotted Combat Programmer 34040 | -1/Command | Spotted Combat Programmer 34042 | -1/Command | Build established: Wizard-Sprinter 34048 | -1/Command | Warlord commented on Warlord statues 34185 | -1/Command | All MAIN.C guards destroyed 34192 | -1/Command | Found Prototype Reactor 34192 | -1/Command | Identified Zero-point Reactor 34290 | -1/Command | Repaired Electron Diverter 34292 | -1/Command | Warlord destroyed during the assault 34393 | -1/Command | Spotted Alpha 7 34395 | -1/Command | Spotted B-99 Colossus 34538 | -1/Command | Met MAIN.C 34580 | -1/Command | Destroyed MAIN.C Shell 34581 | -1/Command | MAIN.C activated Command garrisons 34593 | -1/Command | Destroyed MAIN.C 34594 | -1/Command | Discovered new exit (range 53) 34594 | -1/Command | Discovered new exit (range 83) 34594 | -1/Command | Extracted map data and part IDs from MAIN.C's data core 34595 | -1/Command | Interfaced with 0b10 Conduit 34595 | *** | Assimilated 0b10! Last Messages --------------- 34583_ Knocked back. 34583_ Extracted 3 energy. 34583_ Vortex Lance follow-up attack on MAIN.C. 34584_ Extracted 17 energy. 34585_ Extracted 12 energy. 34588_ Vortex Lance follow-up attack on MAIN.C. 34588_ Destroyed Unknown Device. 34589_ Vortex Lance follow-up attack on MAIN.C. 34590_ Destroyed Prototype Device. 34590_ Vortex Lance follow-up attack on MAIN.C. 34590_ Vortex Lance destroyed. 34591_ Vortex Lance follow-up attack on MAIN.C. 34592_ System corrupted: IFF burst signal emitted. 34592_ Vortex Lance follow-up attack on MAIN.C. 34593_ MAIN.C: "I hope you know you're still going to DIE HERE WITH ME!" 34593_ MAIN.C destroyed. 34594_ EXIT=FOUND 34594_ Acquired data core, extracted map data and part IDs. 34595_ Interfacing with system... [Achievement: MAIN.CPP] Map ----- +----------------------------------------------------+ | ## ######################################### | | ## ######################################### | | ## ######################################### | | ## ######################################### | | ##+##+########################################### | | ## ## ########################################### | | + ## ########################################### | | ##### ########################################### | | ##### ########################################### | | ##### ########################################### | | ######/########################################### | | ## ######################################### | | # ######################################### | | # ######################################### | | # #####""""""" """" ############### | | # #####"" "" ############### | | # #####""""" "" ############### | | # #####""""""""""" + | | ## #####" " """ + | | # #####"" """""" + | | + #####"" """""" ############### | | # ##### " """""" ############### | | # ##### " "" ############### | | # ##### " " ""############### | | ## #####""""""""" """""""############### | | ## #####"" @"""""""""############### | | ## ##### """""""""""############### | | ## ##### " " " " ############### | | ############## " " " " ############### | | " " " """" " ############### | | """ " " """" ############### | | " " " " ############### | | #+########### """""""""" " ############### | | # ###### " """ " """"""""############### | | # ###### """ " " " ############### | | # ########################################## | | # ########################################## | | # ########################################## | | # ########################################## | | ################################################# | | ################################################# | | ################################################# | | ################################################# | | ################################################# | | ################################################# | | ################################################# | | ################################################# | | ################################################# | | ################################################# | | ################################# | +----------------------------------------------------+ Best States ------------- Heat Dissipation 71 Energy Generation 57 Energy Capacity 600 Matter Stores 300 Matter Capacity 300 Sight Range 24 Terrain Scan Range 30 Terrain Scan Density 1010 Jamming Range 16 Cloak Strength 4 Power Amplification 40 Additional Mass Support 25 Base Temperature (-) 100 Armor Coverage 675 Resistance: EM 75 Utility Shielding 90 Melee Speed Boost 50 Phase Shifting 20 Evasion (%) 100 Targeting Accuracy 6 Melee Accuracy 32 Armor Integrity Analysis 40 Recoil Reduction 4 Force Boost 40 Offensive Hacking 81 Defensive Hacking 53 Authchip Count 3 Trap Extractor Capacity 8 Item Schematics ----------------- Exp. Utility Shielding | -1/Access | Hacked Robot Schematics ------------------ None Fabricated ------------ Cld. VTOL Module | x1 | -7/Factory | Authchip Cld. VTOL Module | x1 | -7/Factory | Authchip Cld. VTOL Module | x1 | -7/Factory | Authchip Adv. Datajack | x1 | -7/Factory | Preloaded Cld. VTOL Module | x1 | -7/Factory | Authchip Cld. VTOL Module | x1 | -7/Factory | Authchip Cld. VTOL Module | x1 | -7/Factory | Authchip Exp. Utility Shielding | x1 | -6/Factory | Authchip Adv. Hacking Suite | x1 | -6/Factory Adv. Trap Extractor | x2 | -6/Factory | Authchip Adv. Hacking Suite | x1 | -6/Factory Cld. Nuclear Pulse Thruster | x1 | -5/Factory Lgt. Neutrino Core | x1 | -5/Factory Cld. Nuclear Pulse Thruster | x1 | -5/Factory Enh. Nova Cannon | x1 | -5/Factory | Preloaded Adv. System Restoration Module | x2 | -5/Factory Lgt. Particle Reactor | x2 | -5/Factory | Preloaded Cld. Plasma Cannon | x1 | -5/Factory Cld. Impulse Thruster | x1 | -5/Factory | Authchip Cld. Impulse Thruster | x1 | -5/Factory Adv. Power Amplifier | x1 | -4/Factory | Preloaded Exp. Terrain Scan Processor | x1 | -4/Factory | Authchip Exp. Terrain Scanner | x1 | -4/Factory | Authchip Exp. Power Amplifier | x1 | -4/Factory | Authchip Graviton Reactor | x1 | -4/Factory | Authchip Exp. Melee Analysis Suite | x1 | -4/Factory | Authchip Exp. Melee Analysis Suite | x1 | -4/Factory | Authchip Stasis Canceller | x1 | -4/Factory | Authchip Adv. Quantum Shading Machine | x1 | -3/Research | Authchip Femtoactuators | x1 | -3/Research Exp. Actuator Array | x1 | -3/Research Adv. Force Booster | x2 | -3/Research | Preloaded Exp. Core Analyzer | x1 | -3/Research Exp. Phase Shifter | x1 | -2/Research Cld. Impulse Thruster | x1 | -2/Research Exp. Utility Shielding | x1 | -1/Access Alien Tech Used ----------------- Core Expander Integrated Reactor Transdimensional Reconstructor Subatomic Replicator Core Reset Matrix Microwarp Drive Achievements -------------- MAIN.CPP Woof! Challenges ------------ None Game ------ Seed ShrapnelLaserPenetrator Manual? 0 Play Time 15:54:37 Cumulative 485.6 hours Start 2024.02.24 @ 20:29:49 End 2024.02.27 @ 23:33:11 Sessions 11 Manual Loads 0 Difficulty Rogue Special Mode None Game No. 179 Rogue 179 Adventurer 0 Explorer 0 Win Type 4 Total 23 Types 8/1/5/3/1/0/4/1/0 Lore% 93 Gallery% 95 Achievement% 84 Wizard Run 0 Options --------- ASCII 0 Keyboard 1 Movement Arrows Keybinds 0 Fullscreen 2 Font 18/X11 Map View 76x50 Tactical HUD 1 Map Filters NONE Filters NONE Steam 1 RUN: ff3e4f5f-a21e-4cc1-87df-78153ac432a1